Workbook

Sheet Step 1 - Fungicide Planner
A17: Design Your Own Program Fungicide Planner
A18: BASF Brand Name | B18: Case Size | C18: Article No. | D18: Use Area | E18: Acres | F18: Application Rate | G18: Number of Applications | H18: Cases of Product Needed | I18: Cost per Acre (before rebate) | J18: Cost per Acre (after rebate*)
K19: Article | L19: Rate | M19: Coverage | N19: Cases
A20: Aramax™ Intrinsic® | B20: =VLOOKUP(C20,'Article Reference'!$A$3:$C$17,3,FALSE) -> 2 x 2.5 gal | C20: 59026671 | E20: 0 | F20: 43.5 oz | G20: 0 | H20: =IF(M20=0,0,(G20*E20)/M20) -> 0 | I20: =IF(G20*E20=0,0,(ROUND(H20,2)*VLOOKUP(K20,'Step 2 - Order Planner'!$C$26:$D$72,2,FALSE))/(G20*E20)) -> 0 | J20: =IF(G20*E20=0,0,((VLOOKUP(K20,'Step 2 - Order Planner'!$C$26:$D$72,2,FALSE)*(1-'Step 2 - Order Planner'!$B$20))*ROUND(H20,2))/(G20*E20)) -> 0 | K20: 59026671 | L20: 7 | M20: =IF(L20=0,0,VLOOKUP(K20,'Coverage Reference'!$B$4:$H$21,L20,FALSE)) -> 14.71264368 | N20: =H20 -> 0
A21: Aramax™ Intrinsic® | B21: 4 x 43.5 fl oz | C21: 59032979 | E21: 0 | F21: 43.5 oz | G21: 0 | H21: =IF(M21=0,0,(G21*E21)/M21) -> 0 | I21: =IF(G21*E21=0,0,(ROUND(H21,2)*VLOOKUP(K21,'Step 2 - Order Planner'!$C$26:$D$72,2,FALSE))/(G21*E21)) -> 0 | J21: =IF(G21*E21=0,0,((VLOOKUP(K21,'Step 2 - Order Planner'!$C$26:$D$72,2,FALSE)*(1-'Step 2 - Order Planner'!$B$20))*ROUND(H21,2))/(G21*E21)) -> 0 | K21: 59032979 | L21: 7 | M21: =IF(L21=0,0,VLOOKUP(K21,'Coverage Reference'!$B$4:$H$21,L21,FALSE)) -> 4 | N21: =H21 -> 0
A22: Emerald® | B22: =VLOOKUP(C22,'Article Reference'!$A$3:$C$17,3,FALSE) -> 10 x 0.49 lb | C22: 59021463 | E22: 0 | F22: 8.0 oz | G22: 0 | H22: =IF(M22=0,0,(G22*E22)/M22) -> 0 | I22: =IF(G22*E22=0,0,(ROUND(H22,2)*VLOOKUP(K22,'Step 2 - Order Planner'!$C$26:$D$72,2,FALSE))/(G22*E22)) -> 0 | J22: =IF(G22*E22=0,0,((VLOOKUP(K22,'Step 2 - Order Planner'!$C$26:$D$72,2,FALSE)*(1-'Step 2 - Order Planner'!$B$20))*ROUND(H22,2))/(G22*E22)) -> 0 | K22: 59021463 | L22: 7 | M22: =IF(L22=0,0,VLOOKUP(K22,'Coverage Reference'!$B$4:$H$21,L22,FALSE)) -> 10 | N22: =H22 -> 0
A23: Encartis® | B23: =VLOOKUP(C23,'Article Reference'!$A$3:$C$17,3,FALSE) -> 2 x 2.5 gal | C23: 59014003 | E23: 0 | F23: Select Rate | G23: 0 | H23: =IF(M23=0,0,(G23*E23)/M23) -> 0 | I23: =IF(G23*E23=0,0,(ROUND(H23,2)*VLOOKUP(K23,'Step 2 - Order Planner'!$C$26:$D$72,2,FALSE))/(G23*E23)) -> 0 | J23: =IF(G23*E23=0,0,((VLOOKUP(K23,'Step 2 - Order Planner'!$C$26:$D$72,2,FALSE)*(1-'Step 2 - Order Planner'!$B$20))*ROUND(H23,2))/(G23*E23)) -> 0 | K23: 59014003 | L23: =IF(F23="130.5 fl oz",5,IF(F23="152.5 fl oz",6,IF(F23="174.0 fl oz",7,))) -> 0 | M23: =IF(L23=0,0,VLOOKUP(K23,'Coverage Reference'!$B$4:$H$21,L23,FALSE)) -> 0 | N23: =H23 -> 0
A24: Honor® Intrinsic® | B24: =VLOOKUP(C24,'Article Reference'!$A$3:$C$17,3,FALSE) -> 6 x 3 lb | C24: 59012350 | E24: 0 | F24: 48.0 oz | G24: 0 | H24: 0 | I24: =IF(G24*E24=0,0,(ROUND(H24,2)*VLOOKUP(K24,'Step 2 - Order Planner'!$C$26:$D$72,2,FALSE))/(G24*E24)) -> 0 | J24: =IF(G24*E24=0,0,((VLOOKUP(K24,'Step 2 - Order Planner'!$C$26:$D$72,2,FALSE)*(1-'Step 2 - Order Planner'!$B$20))*ROUND(H24,2))/(G24*E24)) -> 0 | K24: 59012350 | L24: 7 | M24: =IF(L24=0,0,VLOOKUP(K24,'Coverage Reference'!$B$4:$H$21,L24,FALSE)) -> 6 | N24: =H24 -> 0
B25: =VLOOKUP(C25,'Article Reference'!$A$3:$C$17,3,FALSE) -> 1 x 36 lb | C25: 59012885 | E25: 0 | F25: 48.0 oz | G25: 0 | H25: 0 | I25: =IF(G25*E25=0,0,(ROUND(H25,2)*VLOOKUP(K25,'Step 2 - Order Planner'!$C$26:$D$72,2,FALSE))/(G25*E25)) -> 0 | J25: =IF(G25*E25=0,0,((VLOOKUP(K25,'Step 2 - Order Planner'!$C$26:$D$72,2,FALSE)*(1-'Step 2 - Order Planner'!$B$20))*ROUND(H25,2))/(G25*E25)) -> 0 | K25: 59012885 | L25: 7 | M25: =IF(L25=0,0,VLOOKUP(K25,'Coverage Reference'!$B$4:$H$21,L25,FALSE)) -> 12 | N25: 0
A26: Insignia® SC Intrinsic® | B26: =VLOOKUP(C26,'Article Reference'!$A$3:$C$17,3,FALSE) -> 4 x 30.5 fl oz | C26: 59028038 | E26: 0 | F26: 30.5 oz | G26: 0 | H26: 0 | I26: =IF(G26*E26=0,0,(ROUND(H26,2)*VLOOKUP(K26,'Step 2 - Order Planner'!$C$26:$D$72,2,FALSE))/(G26*E26)) -> 0 | J26: =IF(G26*E26=0,0,((VLOOKUP(K26,'Step 2 - Order Planner'!$C$26:$D$72,2,FALSE)*(1-'Step 2 - Order Planner'!$B$20))*ROUND(H26,2))/(G26*E26)) -> 0 | K26: 59028038 | L26: 7 | M26: =IF(L26=0,0,VLOOKUP(K26,'Coverage Reference'!$B$4:$H$21,L26,FALSE)) -> 4 | N26: 0 | O26: Greens
B27: =VLOOKUP(C27,'Article Reference'!$A$3:$C$17,3,FALSE) -> 2 x 2.5 gal | C27: 59028040 | E27: 0 | F27: 30.5 oz | G27: 0 | H27: 0 | I27: =IF(G27*E27=0,0,(ROUND(H27,2)*VLOOKUP(K27,'Step 2 - Order Planner'!$C$26:$D$72,2,FALSE))/(G27*E27)) -> 0 | J27: =IF(G27*E27=0,0,((VLOOKUP(K27,'Step 2 - Order Planner'!$C$26:$D$72,2,FALSE)*(1-'Step 2 - Order Planner'!$B$20))*ROUND(H27,2))/(G27*E27)) -> 0 | K27: 59028040 | L27: 7 | M27: =IF(L27=0,0,VLOOKUP(K27,'Coverage Reference'!$B$4:$H$21,L27,FALSE)) -> 21 | N27: 0 | O27: Fairways
A28: Lexicon® Intrinsic® | B28: =VLOOKUP(C28,'Article Reference'!$A$3:$C$17,3,FALSE) -> 4 x 21 oz | C28: 59027998 | E28: 0 | F28: 21.0 oz | G28: 0 | H28: 0 | I28: =IF(G28*E28=0,0,(ROUND(H28,2)*VLOOKUP(K28,'Step 2 - Order Planner'!$C$26:$D$72,2,FALSE))/(G28*E28)) -> 0 | J28: =IF(G28*E28=0,0,((VLOOKUP(K28,'Step 2 - Order Planner'!$C$26:$D$72,2,FALSE)*(1-'Step 2 - Order Planner'!$B$20))*ROUND(H28,2))/(G28*E28)) -> 0 | K28: 59027998 | L28: 7 | M28: =IF(L28=0,0,VLOOKUP(K28,'Coverage Reference'!$B$4:$H$21,L28,FALSE)) -> 4 | N28: 0
A29: Maxtima® | B29: =VLOOKUP(C29,'Article Reference'!$A$3:$C$17,3,FALSE) -> 4 x 26 oz | C29: 59018087 | E29: 0 | F29: Select Rate | G29: 0 | H29: 0 | I29: =IF(G29*E29=0,0,(ROUND(H29,2)*VLOOKUP(K29,'Step 2 - Order Planner'!$C$26:$D$72,2,FALSE))/(G29*E29)) -> 0 | J29: =IF(G29*E29=0,0,((VLOOKUP(K29,'Step 2 - Order Planner'!$C$26:$D$72,2,FALSE)*(1-'Step 2 - Order Planner'!$B$20))*ROUND(H29,2))/(G29*E29)) -> 0 | K29: 59018087 | L29: =IF(F29="8.7 oz",4,IF(F29="17.4 oz",5,IF(F29="26.1 oz",6,IF(F29="34.8 oz",7,0)))) -> 0 | M29: =IF(L29=0,0,VLOOKUP(K29,'Coverage Reference'!$B$4:$H$21,L29,FALSE)) -> 0 | N29: 0
B30: =VLOOKUP(C30,'Article Reference'!$A$3:$C$17,3,FALSE) -> 2 x 2.5 gal | C30: 59018071 | E30: 0 | F30: Select Rate | G30: 0 | H30: 0 | I30: =IF(G30*E30=0,0,(ROUND(H30,2)*VLOOKUP(K30,'Step 2 - Order Planner'!$C$26:$D$72,2,FALSE))/(G30*E30)) -> 0 | J30: =IF(G30*E30=0,0,((VLOOKUP(K30,'Step 2 - Order Planner'!$C$26:$D$72,2,FALSE)*(1-'Step 2 - Order Planner'!$B$20))*ROUND(H30,2))/(G30*E30)) -> 0 | K30: 59018071 | L30: =IF(F30="8.7 oz",4,IF(F30="17.4 oz",5,IF(F30="26.1 oz",6,IF(F30="34.8 oz",7,0)))) -> 0 | M30: =IF(L30=0,0,VLOOKUP(K30,'Coverage Reference'!$B$4:$H$21,L30,FALSE)) -> 0 | N30: 0
A31: Navicon® Intrinsic® | B31: =VLOOKUP(C31,'Article Reference'!$A$3:$C$17,3,FALSE) -> 4 x 37 fl oz | C31: 59018094 | E31: 0 | F31: 37.5 oz | G31: 0 | H31: 0 | I31: =IF(G31*E31=0,0,(ROUND(H31,2)*VLOOKUP(K31,'Step 2 - Order Planner'!$C$26:$D$72,2,FALSE))/(G31*E31)) -> 0 | J31: =IF(G31*E31=0,0,((VLOOKUP(K31,'Step 2 - Order Planner'!$C$26:$D$72,2,FALSE)*(1-'Step 2 - Order Planner'!$B$20))*ROUND(H31,2))/(G31*E31)) -> 0 | K31: 59018094 | L31: 7 | M31: =IF(L31=0,0,VLOOKUP(K31,'Coverage Reference'!$B$4:$H$21,L31,FALSE)) -> 4 | N31: 0
B32: =VLOOKUP(C32,'Article Reference'!$A$3:$C$17,3,FALSE) -> 2 x 2.5 gal | C32: 59018095 | E32: 0 | F32: 37.5 oz | G32: 0 | H32: 0 | I32: =IF(G32*E32=0,0,(ROUND(H32,2)*VLOOKUP(K32,'Step 2 - Order Planner'!$C$26:$D$72,2,FALSE))/(G32*E32)) -> 0 | J32: =IF(G32*E32=0,0,((VLOOKUP(K32,'Step 2 - Order Planner'!$C$26:$D$72,2,FALSE)*(1-'Step 2 - Order Planner'!$B$20))*ROUND(H32,2))/(G32*E32)) -> 0 | K32: 59018095 | L32: 7 | M32: =IF(L32=0,0,VLOOKUP(K32,'Coverage Reference'!$B$4:$H$21,L32,FALSE)) -> 17 | N32: 0
A33: Xzemplar® | B33: =VLOOKUP(C33,'Article Reference'!$A$3:$C$17,3,FALSE) -> 4 x 11.4 oz | C33: 59014120 | E33: 0 | F33: Select Rate | G33: 0 | H33: 0 | I33: =IF(G33*E33=0,0,(ROUND(H33,2)*VLOOKUP(K33,'Step 2 - Order Planner'!$C$26:$D$72,2,FALSE))/(G33*E33)) -> 0 | J33: =IF(G33*E33=0,0,((VLOOKUP(K33,'Step 2 - Order Planner'!$C$26:$D$72,2,FALSE)*(1-'Step 2 - Order Planner'!$B$20))*ROUND(H33,2))/(G33*E33)) -> 0 | K33: 59014120 | L33: =IF(F33="7 oz",5,IF(F33="9.2 oz",6,IF(F33="11.4 oz",7,0))) -> 0 | M33: =IF(L33=0,0,VLOOKUP(K33,'Coverage Reference'!$B$4:$H$21,L33,FALSE)) -> 0 | N33: 0
B34: =VLOOKUP(C34,'Article Reference'!$A$3:$C$17,3,FALSE) -> 2 x 114 oz | C34: 59013833 | E34: 0 | F34: Select Rate | G34: 0 | H34: 0 | I34: =IF(G34*E34=0,0,(ROUND(H34,2)*VLOOKUP(K34,'Step 2 - Order Planner'!$C$26:$D$72,2,FALSE))/(G34*E34)) -> 0 | J34: =IF(G34*E34=0,0,((VLOOKUP(K34,'Step 2 - Order Planner'!$C$26:$D$72,2,FALSE)*(1-'Step 2 - Order Planner'!$B$20))*ROUND(H34,2))/(G34*E34)) -> 0 | K34: 59013833 | L34: =IF(F34="7 oz",5,IF(F34="9.2 oz",6,IF(F34="11.4 oz",7,0))) -> 0 | M34: =IF(L34=0,0,VLOOKUP(K34,'Coverage Reference'!$B$4:$H$21,L34,FALSE)) -> 0 | N34: 0
A36: * Cost per Acre after rebate is estimated based on orders in "Step 2 - Order Planner" tab
A37: BASF has developed this calculator using formulas that approximate the rebate amount under the 2026 Early Order Program. The calculator is being shared with you for information purposes only and for your private use in preparing your own calculations. While every effort has been made to ensure the accuracy and reliability of the information and formulas, no guarantee is given nor responsibility taken by BASF for the accuracy of the calculator or the applicability to your particular circumstances. BASF PROVIDES THIS CALCULATOR AND ANY RESULT THEREFROM AS IS WITH ALL FAULTS AND WITH NO WARRANTY WHATSOEVER, EITHER EXPRESS OR IMPLIED, INCLUDING ANY WARRANTIES OF MERCHANTABILITY AND FITNESS FOR PARTICULAR PURPOSE. YOU ASSUME ANY AND ALL RISKS IN USING THE CALCULATOR AND RELYING ON THE INFORMATION CONTAINED HEREIN. IN NO CIRCUMSTANCES SHALL BASF BE LIABLE FOR ANY DAMAGES WHATSOEVER, INCLUDING BUT NOT LIMITED TO LOSS OF PROFIT, LOSS OF BUSINESS, LOSS OF SAVINGS, OR CONSEQUENTIAL DAMAGES, EVEN IF BASF HAS BEEN NOTIFIED AS SUCH.

Sheet Step 2 - Order Planner
P15: Upgrade Your DYOP Rebate
A16: EOP Rebate Calculator | P16: =IF('Range Reference'!S18=0,"Buy 3 fungicide brands to qualify",IF('Range Reference'!S18=1,"Buy 2 more fungicide brands to qualify",IF('Range Reference'!S18=2,"Buy 1 more fungicide brand to qualify","Qualified"))) -> Buy 3 fungicide brands to qualify
A17: DYOP Rebate Program Locked | B17: =IF(AND(G41>=3000,'Range Reference'!Q18>=1),"October Rebate Locked",IF(AND(J41>=3000,'Range Reference'!S18>=1),"Nov-Dec Rebate Locked","Rebate Level Not Achieved")) -> Rebate Level Not Achieved | D17: DYOP Total Purchases | H17: ='Article Reference'!G18 -> 0
A18: 3 or More Fungicide Brands | B18: =IF(AND(H17>=3000,'Range Reference'!S18>=3),"Design Your Own Program Rebate","Need to buy "&3-'Range Reference'!S18&" More Brand(s)") -> Need to buy 3 More Brand(s) | D18: DYOP Rebate | H18: =IF(AND(B20=0,B21>0),H17*B21,(B20*H17)) -> 0 | P18: Spend for Next DYOP Level | Q18: Next Level
D19: Across-the-Course-Solutions Purchases | H19: ='Article Reference'!G54 -> 0
A20: DYOP Rebate | B20: =IF(AND('Range Reference'!S18<3,G41>=3000),0.08,IF(AND('Range Reference'!S18<3,I41>=3000),0.03,'Range Reference'!G16)) -> 0 | D20: Across-the-Course-Solutions Rebate | H20: =(H19*B21) -> 0 | P20: =IF(P16<>"Qualified","",HLOOKUP(H17,'Range Reference'!$H$10:$H$16,7,FALSE)) ->  | Q20: =IF(ISNA(IF(P20=0,"Max",VLOOKUP(P20,'Range Reference'!H11:I15,2,FALSE)))=TRUE,"",IF(P20=0,"Max",VLOOKUP(P20,'Range Reference'!H11:I15,2,FALSE))) -> 
A21: Across-The-Course Rebate | B21: =IF(AND('Range Reference'!S18>=3,H17>=20000),0.12,'Range Reference'!G6) -> 0 | D21: TOTAL EOP PURCHASE | H21: =H17+H19 -> 0
A22: Aramax™ SC Intrinsic® Kicker Rebate | B22: =IF((F26+H26)>=1.5,(G26+I26)*Q29,0) -> 0 | C22: =Q29 -> 0 | D22: Total Effective Rebate on All Purchases | H22: =IF(H21=0,0,H23/H21) -> 0 | P22: Spend for Next ACS Level | Q22: Next Level
A23: Tower® Herbicide Fairway Kicker Rebate | B23: =IF(F61>=1,(G61*Q33),0) -> 0 | C23: =Q33 -> 0 | D23: TOTAL EOP Rebate | H23: =(H18+H20)+(B22+B23) -> 0
A25: Qualifying Fungicide EOP Products | B25: Package | C25: Article No. | D25: Redemption Value | E25: Cases Needed (rounded up to partial cases) | F25: Oct Order (Cases) | G25: Oct Sales | H25: Nov-Dec Order (Cases) | I25: Nov-Dec Sales | J25: Acres Low | K25: Acres Mid | L25: Acres High | M25: roundup | N25: ceiling | P25: =IF(Q20="Max",0,HLOOKUP(H19,'Range Reference'!$H$19:$H$23,5,FALSE)) -> 3000 | Q25: =IF(P25=0,"Max",VLOOKUP(P25,'Range Reference'!H20:I22,2,FALSE)) -> 0.04
A26: =VLOOKUP($C26,'Article Reference'!$A$3:$C$40,2,FALSE) -> Aramax™ Intrinsic® brand Fungicide | B26: =VLOOKUP($C26,'Article Reference'!$A$3:$C$40,3,FALSE) -> 2 x 2.5 gal | C26: 59026671 | D26: =VLOOKUP($C26,'Article Reference'!$A$3:$E$17,5,FALSE) -> 5359.7 | E26: =CEILING(ROUNDUP(IF(ISNA(VLOOKUP(C26,'Step 1 - Fungicide Planner'!$K$20:$N$34,4,FALSE))=TRUE,"",VLOOKUP(C26,'Step 1 - Fungicide Planner'!$K$20:$N$34,4,FALSE)),M26),N26) -> 0 | F26: 0 | G26: =D26*F26 -> 0 | H26: 0 | I26: =H26*D26 -> 0 | J26: =IF(ISNA(VLOOKUP($C26,'Coverage Reference'!$B$4:$H$21,4,FALSE))=TRUE,0,VLOOKUP($C26,'Coverage Reference'!$B$4:$H$21,4,FALSE)*(F26+H26)) -> 0 | K26: =IF(ISNA(VLOOKUP($C26,'Coverage Reference'!$B$4:$H$21,5,FALSE))=TRUE,0,VLOOKUP($C26,'Coverage Reference'!$B$4:$H$21,5,FALSE)*(F26+H26)) -> 0 | L26: =IF(ISNA(VLOOKUP($C26,'Coverage Reference'!$B$4:$H$21,6,FALSE))=TRUE,0,VLOOKUP($C26,'Coverage Reference'!$B$4:$H$21,6,FALSE)*(F26+H26)) -> 0 | M26: 2 | N26: 0.5 | P26: Aramax™ Intrinsic® Kicker (bottles) | Q26: =IF(B22>0,"Achieved","Buy 3 or more bottles") -> Buy 3 or more bottles
A27: =VLOOKUP($C27,'Article Reference'!$A$3:$C$40,2,FALSE) -> Aramax™ Intrinsic brand fungicide | B27: =VLOOKUP($C27,'Article Reference'!$A$3:$C$40,3,FALSE) -> 4 x 43.5 fl oz | C27: 59032979 | D27: =VLOOKUP($C27,'Article Reference'!$A$3:$E$17,5,FALSE) -> 1520.76 | E27: =CEILING(ROUNDUP(IF(ISNA(VLOOKUP(C27,'Step 1 - Fungicide Planner'!$K$20:$N$34,4,FALSE))=TRUE,"",VLOOKUP(C27,'Step 1 - Fungicide Planner'!$K$20:$N$34,4,FALSE)),M27),N27) -> 0 | F27: 0 | G27: =D27*F27 -> 0 | H27: 0 | I27: 0 | J27: =IF(ISNA(VLOOKUP($C27,'Coverage Reference'!$B$4:$H$21,4,FALSE))=TRUE,0,VLOOKUP($C27,'Coverage Reference'!$B$4:$H$21,4,FALSE)*(F27+H27)) -> 0 | K27: =IF(ISNA(VLOOKUP($C27,'Coverage Reference'!$B$4:$H$21,5,FALSE))=TRUE,0,VLOOKUP($C27,'Coverage Reference'!$B$4:$H$21,5,FALSE)*(F27+H27)) -> 0 | L27: =IF(ISNA(VLOOKUP($C27,'Coverage Reference'!$B$4:$H$21,6,FALSE))=TRUE,0,VLOOKUP($C27,'Coverage Reference'!$B$4:$H$21,6,FALSE)*(F27+H27)) -> 0 | M27: 2 | N27: 0.25
A28: =VLOOKUP($C28,'Article Reference'!$A$3:$C$40,2,FALSE) -> Emerald® fungicide | B28: =VLOOKUP($C28,'Article Reference'!$A$3:$C$40,3,FALSE) -> 10 x 0.49 lb | C28: 59021463 | D28: =VLOOKUP($C28,'Article Reference'!$A$3:$E$17,5,FALSE) -> 1274.1 | E28: =CEILING(ROUNDUP(IF(ISNA(VLOOKUP(C28,'Step 1 - Fungicide Planner'!$K$20:$N$34,4,FALSE))=TRUE,"",VLOOKUP(C28,'Step 1 - Fungicide Planner'!$K$20:$N$34,4,FALSE)),M28),N28) -> 0 | F28: 0 | G28: =D28*F28 -> 0 | H28: 0 | I28: =H28*D28 -> 0 | J28: =IF(ISNA(VLOOKUP($C28,'Coverage Reference'!$B$4:$H$21,4,FALSE))=TRUE,0,VLOOKUP($C28,'Coverage Reference'!$B$4:$H$21,4,FALSE)*(F28+H28)) -> 0 | K28: =IF(ISNA(VLOOKUP($C28,'Coverage Reference'!$B$4:$H$21,5,FALSE))=TRUE,0,VLOOKUP($C28,'Coverage Reference'!$B$4:$H$21,5,FALSE)*(F28+H28)) -> 0 | L28: =IF(ISNA(VLOOKUP($C28,'Coverage Reference'!$B$4:$H$21,6,FALSE))=TRUE,0,VLOOKUP($C28,'Coverage Reference'!$B$4:$H$21,6,FALSE)*(F28+H28)) -> 0 | M28: 2 | N28: 1
A29: =VLOOKUP($C29,'Article Reference'!$A$3:$C$40,2,FALSE) -> Encartis® fungicide | B29: =VLOOKUP($C29,'Article Reference'!$A$3:$C$40,3,FALSE) -> 2 x 2.5 gal | C29: 59014003 | D29: =VLOOKUP($C29,'Article Reference'!$A$3:$E$17,5,FALSE) -> 698.86 | E29: =CEILING(ROUNDUP(IF(ISNA(VLOOKUP(C29,'Step 1 - Fungicide Planner'!$K$20:$N$34,4,FALSE))=TRUE,"",VLOOKUP(C29,'Step 1 - Fungicide Planner'!$K$20:$N$34,4,FALSE)),M29),N29) -> 0 | F29: 0 | G29: 0 | H29: 0 | I29: 0 | J29: =IF(ISNA(VLOOKUP($C29,'Coverage Reference'!$B$4:$H$21,4,FALSE))=TRUE,0,VLOOKUP($C29,'Coverage Reference'!$B$4:$H$21,4,FALSE)*(F29+H29)) -> 0 | K29: =IF(ISNA(VLOOKUP($C29,'Coverage Reference'!$B$4:$H$21,5,FALSE))=TRUE,0,VLOOKUP($C29,'Coverage Reference'!$B$4:$H$21,5,FALSE)*(F29+H29)) -> 0 | L29: =IF(ISNA(VLOOKUP($C29,'Coverage Reference'!$B$4:$H$21,6,FALSE))=TRUE,0,VLOOKUP($C29,'Coverage Reference'!$B$4:$H$21,6,FALSE)*(F29+H29)) -> 0 | M29: 2 | N29: 0.5 | P29: ='Range Reference'!P22 -> 0 | Q29: =IF(P29>=3,0.09,0) -> 0
A30: =VLOOKUP($C30,'Article Reference'!$A$3:$C$40,2,FALSE) -> Honor® Intrinsic® brand fungicide | B30: =VLOOKUP($C30,'Article Reference'!$A$3:$C$40,3,FALSE) -> 6 x 3 lb | C30: 59012350 | D30: =VLOOKUP($C30,'Article Reference'!$A$3:$E$17,5,FALSE) -> 3625.92 | E30: =CEILING(ROUNDUP(IF(ISNA(VLOOKUP(C30,'Step 1 - Fungicide Planner'!$K$20:$N$34,4,FALSE))=TRUE,"",VLOOKUP(C30,'Step 1 - Fungicide Planner'!$K$20:$N$34,4,FALSE)),M30),N30) -> 0 | F30: 0 | G30: 0 | H30: 0 | I30: 0 | J30: =IF(ISNA(VLOOKUP($C30,'Coverage Reference'!$B$4:$H$21,4,FALSE))=TRUE,0,VLOOKUP($C30,'Coverage Reference'!$B$4:$H$21,4,FALSE)*(F30+H30)) -> 0 | K30: =IF(ISNA(VLOOKUP($C30,'Coverage Reference'!$B$4:$H$21,5,FALSE))=TRUE,0,VLOOKUP($C30,'Coverage Reference'!$B$4:$H$21,5,FALSE)*(F30+H30)) -> 0 | L30: =IF(ISNA(VLOOKUP($C30,'Coverage Reference'!$B$4:$H$21,6,FALSE))=TRUE,0,VLOOKUP($C30,'Coverage Reference'!$B$4:$H$21,6,FALSE)*(F30+H30)) -> 0 | M30: 2 | N30: =1/6 -> 0.1666666667
A31: =VLOOKUP($C31,'Article Reference'!$A$3:$C$40,2,FALSE) -> Honor® Intrinsic® brand fungicide | B31: =VLOOKUP($C31,'Article Reference'!$A$3:$C$40,3,FALSE) -> 1 x 36 lb | C31: 59012885 | D31: =VLOOKUP($C31,'Article Reference'!$A$3:$E$17,5,FALSE) -> 5253.84 | E31: =CEILING(ROUNDUP(IF(ISNA(VLOOKUP(C31,'Step 1 - Fungicide Planner'!$K$20:$N$34,4,FALSE))=TRUE,"",VLOOKUP(C31,'Step 1 - Fungicide Planner'!$K$20:$N$34,4,FALSE)),M31),N31) -> 0 | F31: 0 | G31: 0 | H31: 0 | I31: 0 | J31: =IF(ISNA(VLOOKUP($C31,'Coverage Reference'!$B$4:$H$21,4,FALSE))=TRUE,0,VLOOKUP($C31,'Coverage Reference'!$B$4:$H$21,4,FALSE)*(F31+H31)) -> 0 | K31: =IF(ISNA(VLOOKUP($C31,'Coverage Reference'!$B$4:$H$21,5,FALSE))=TRUE,0,VLOOKUP($C31,'Coverage Reference'!$B$4:$H$21,5,FALSE)*(F31+H31)) -> 0 | L31: =IF(ISNA(VLOOKUP($C31,'Coverage Reference'!$B$4:$H$21,6,FALSE))=TRUE,0,VLOOKUP($C31,'Coverage Reference'!$B$4:$H$21,6,FALSE)*(F31+H31)) -> 0 | M31: 0 | N31: 1 | P31: Tower® Herbicide Fairway Kicker (bottles) | Q31: =IF(B23>0,"Achieved","Buy 2 or more bottles") -> Buy 2 or more bottles
A32: =VLOOKUP($C32,'Article Reference'!$A$3:$C$40,2,FALSE) -> Insignia® SC Intrinsic® brand fungicide | B32: =VLOOKUP($C32,'Article Reference'!$A$3:$C$40,3,FALSE) -> 4 x 30.5 fl oz | C32: 59028038 | D32: =VLOOKUP($C32,'Article Reference'!$A$3:$E$17,5,FALSE) -> 2366.8 | E32: =CEILING(ROUNDUP(IF(ISNA(VLOOKUP(C32,'Step 1 - Fungicide Planner'!$K$20:$N$34,4,FALSE))=TRUE,"",VLOOKUP(C32,'Step 1 - Fungicide Planner'!$K$20:$N$34,4,FALSE)),M32),N32) -> 0 | F32: 0 | G32: 0 | H32: 0 | I32: 0 | J32: =IF(ISNA(VLOOKUP($C32,'Coverage Reference'!$B$4:$H$21,4,FALSE))=TRUE,0,VLOOKUP($C32,'Coverage Reference'!$B$4:$H$21,4,FALSE)*(F32+H32)) -> 0 | K32: =IF(ISNA(VLOOKUP($C32,'Coverage Reference'!$B$4:$H$21,5,FALSE))=TRUE,0,VLOOKUP($C32,'Coverage Reference'!$B$4:$H$21,5,FALSE)*(F32+H32)) -> 0 | L32: =IF(ISNA(VLOOKUP($C32,'Coverage Reference'!$B$4:$H$21,6,FALSE))=TRUE,0,VLOOKUP($C32,'Coverage Reference'!$B$4:$H$21,6,FALSE)*(F32+H32)) -> 0 | M32: 2 | N32: 0.25
A33: =VLOOKUP($C33,'Article Reference'!$A$3:$C$40,2,FALSE) -> Insignia® SC Intrinsic® brand fungicide | B33: =VLOOKUP($C33,'Article Reference'!$A$3:$C$40,3,FALSE) -> 2 x 2.5 gal | C33: 59028040 | D33: =VLOOKUP($C33,'Article Reference'!$A$3:$E$17,5,FALSE) -> 7731.26 | E33: =CEILING(ROUNDUP(IF(ISNA(VLOOKUP(C33,'Step 1 - Fungicide Planner'!$K$20:$N$34,4,FALSE))=TRUE,"",VLOOKUP(C33,'Step 1 - Fungicide Planner'!$K$20:$N$34,4,FALSE)),M33),N33) -> 0 | F33: 0 | G33: 0 | H33: 0 | I33: 0 | J33: =IF(ISNA(VLOOKUP($C33,'Coverage Reference'!$B$4:$H$21,4,FALSE))=TRUE,0,VLOOKUP($C33,'Coverage Reference'!$B$4:$H$21,4,FALSE)*(F33+H33)) -> 0 | K33: =IF(ISNA(VLOOKUP($C33,'Coverage Reference'!$B$4:$H$21,5,FALSE))=TRUE,0,VLOOKUP($C33,'Coverage Reference'!$B$4:$H$21,5,FALSE)*(F33+H33)) -> 0 | L33: =IF(ISNA(VLOOKUP($C33,'Coverage Reference'!$B$4:$H$21,6,FALSE))=TRUE,0,VLOOKUP($C33,'Coverage Reference'!$B$4:$H$21,6,FALSE)*(F33+H33)) -> 0 | M33: 2 | N33: 0.5 | P33: ='Range Reference'!P23 -> 0 | Q33: =IF(P33>=2,0.05,0) -> 0
A34: =VLOOKUP($C34,'Article Reference'!$A$3:$C$40,2,FALSE) -> Lexicon® Intrinsic® brand fungicide | B34: =VLOOKUP($C34,'Article Reference'!$A$3:$C$40,3,FALSE) -> 4 x 21 oz | C34: 59027998 | D34: =VLOOKUP($C34,'Article Reference'!$A$3:$E$17,5,FALSE) -> 2589.72 | E34: =CEILING(ROUNDUP(IF(ISNA(VLOOKUP(C34,'Step 1 - Fungicide Planner'!$K$20:$N$34,4,FALSE))=TRUE,"",VLOOKUP(C34,'Step 1 - Fungicide Planner'!$K$20:$N$34,4,FALSE)),M34),N34) -> 0 | F34: 0 | G34: 0 | H34: 0 | I34: 0 | J34: =IF(ISNA(VLOOKUP($C34,'Coverage Reference'!$B$4:$H$21,4,FALSE))=TRUE,0,VLOOKUP($C34,'Coverage Reference'!$B$4:$H$21,4,FALSE)*(F34+H34)) -> 0 | K34: =IF(ISNA(VLOOKUP($C34,'Coverage Reference'!$B$4:$H$21,5,FALSE))=TRUE,0,VLOOKUP($C34,'Coverage Reference'!$B$4:$H$21,5,FALSE)*(F34+H34)) -> 0 | L34: =IF(ISNA(VLOOKUP($C34,'Coverage Reference'!$B$4:$H$21,6,FALSE))=TRUE,0,VLOOKUP($C34,'Coverage Reference'!$B$4:$H$21,6,FALSE)*(F34+H34)) -> 0 | M34: 2 | N34: 0.25
A35: =VLOOKUP($C35,'Article Reference'!$A$3:$C$40,2,FALSE) -> Maxtima® fungicide | B35: =VLOOKUP($C35,'Article Reference'!$A$3:$C$40,3,FALSE) -> 4 x 26 oz | C35: 59018087 | D35: =VLOOKUP($C35,'Article Reference'!$A$3:$E$17,5,FALSE) -> 983.84 | E35: =CEILING(ROUNDUP(IF(ISNA(VLOOKUP(C35,'Step 1 - Fungicide Planner'!$K$20:$N$34,4,FALSE))=TRUE,"",VLOOKUP(C35,'Step 1 - Fungicide Planner'!$K$20:$N$34,4,FALSE)),M35),N35) -> 0 | F35: 0 | G35: 0 | H35: 0 | I35: 0 | J35: =IF(ISNA(VLOOKUP($C35,'Coverage Reference'!$B$4:$H$21,4,FALSE))=TRUE,0,VLOOKUP($C35,'Coverage Reference'!$B$4:$H$21,4,FALSE)*(F35+H35)) -> 0 | K35: =IF(ISNA(VLOOKUP($C35,'Coverage Reference'!$B$4:$H$21,5,FALSE))=TRUE,0,VLOOKUP($C35,'Coverage Reference'!$B$4:$H$21,5,FALSE)*(F35+H35)) -> 0 | L35: =IF(ISNA(VLOOKUP($C35,'Coverage Reference'!$B$4:$H$21,6,FALSE))=TRUE,0,VLOOKUP($C35,'Coverage Reference'!$B$4:$H$21,6,FALSE)*(F35+H35)) -> 0 | M35: 2 | N35: 0.25
A36: =VLOOKUP($C36,'Article Reference'!$A$3:$C$40,2,FALSE) -> Maxtima® fungicide | B36: =VLOOKUP($C36,'Article Reference'!$A$3:$C$40,3,FALSE) -> 2 x 2.5 gal | C36: 59018071 | D36: =VLOOKUP($C36,'Article Reference'!$A$3:$E$17,5,FALSE) -> 4845.86 | E36: =CEILING(ROUNDUP(IF(ISNA(VLOOKUP(C36,'Step 1 - Fungicide Planner'!$K$20:$N$34,4,FALSE))=TRUE,"",VLOOKUP(C36,'Step 1 - Fungicide Planner'!$K$20:$N$34,4,FALSE)),M36),N36) -> 0 | F36: 0 | G36: 0 | H36: 0 | I36: 0 | J36: =IF(ISNA(VLOOKUP($C36,'Coverage Reference'!$B$4:$H$21,4,FALSE))=TRUE,0,VLOOKUP($C36,'Coverage Reference'!$B$4:$H$21,4,FALSE)*(F36+H36)) -> 0 | K36: =IF(ISNA(VLOOKUP($C36,'Coverage Reference'!$B$4:$H$21,5,FALSE))=TRUE,0,VLOOKUP($C36,'Coverage Reference'!$B$4:$H$21,5,FALSE)*(F36+H36)) -> 0 | L36: =IF(ISNA(VLOOKUP($C36,'Coverage Reference'!$B$4:$H$21,6,FALSE))=TRUE,0,VLOOKUP($C36,'Coverage Reference'!$B$4:$H$21,6,FALSE)*(F36+H36)) -> 0 | M36: 2 | N36: 0.5
A37: =VLOOKUP($C37,'Article Reference'!$A$3:$C$40,2,FALSE) -> Navicon® Intrinsic® brand fungicide | B37: =VLOOKUP($C37,'Article Reference'!$A$3:$C$40,3,FALSE) -> 4 x 37 fl oz | C37: 59018094 | D37: =VLOOKUP($C37,'Article Reference'!$A$3:$E$17,5,FALSE) -> 2372.44 | E37: =CEILING(ROUNDUP(IF(ISNA(VLOOKUP(C37,'Step 1 - Fungicide Planner'!$K$20:$N$34,4,FALSE))=TRUE,"",VLOOKUP(C37,'Step 1 - Fungicide Planner'!$K$20:$N$34,4,FALSE)),M37),N37) -> 0 | F37: 0 | G37: 0 | H37: 0 | I37: 0 | J37: =IF(ISNA(VLOOKUP($C37,'Coverage Reference'!$B$4:$H$21,4,FALSE))=TRUE,0,VLOOKUP($C37,'Coverage Reference'!$B$4:$H$21,4,FALSE)*(F37+H37)) -> 0 | K37: =IF(ISNA(VLOOKUP($C37,'Coverage Reference'!$B$4:$H$21,5,FALSE))=TRUE,0,VLOOKUP($C37,'Coverage Reference'!$B$4:$H$21,5,FALSE)*(F37+H37)) -> 0 | L37: =IF(ISNA(VLOOKUP($C37,'Coverage Reference'!$B$4:$H$21,6,FALSE))=TRUE,0,VLOOKUP($C37,'Coverage Reference'!$B$4:$H$21,6,FALSE)*(F37+H37)) -> 0 | M37: 2 | N37: 0.25
A38: =VLOOKUP($C38,'Article Reference'!$A$3:$C$40,2,FALSE) -> Navicon® Intrinsic® brand fungicide | B38: =VLOOKUP($C38,'Article Reference'!$A$3:$C$40,3,FALSE) -> 2 x 2.5 gal | C38: 59018095 | D38: =VLOOKUP($C38,'Article Reference'!$A$3:$E$17,5,FALSE) -> 7523.16 | E38: =CEILING(ROUNDUP(IF(ISNA(VLOOKUP(C38,'Step 1 - Fungicide Planner'!$K$20:$N$34,4,FALSE))=TRUE,"",VLOOKUP(C38,'Step 1 - Fungicide Planner'!$K$20:$N$34,4,FALSE)),M38),N38) -> 0 | F38: 0 | G38: 0 | H38: 0 | I38: 0 | J38: =IF(ISNA(VLOOKUP($C38,'Coverage Reference'!$B$4:$H$21,4,FALSE))=TRUE,0,VLOOKUP($C38,'Coverage Reference'!$B$4:$H$21,4,FALSE)*(F38+H38)) -> 0 | K38: =IF(ISNA(VLOOKUP($C38,'Coverage Reference'!$B$4:$H$21,5,FALSE))=TRUE,0,VLOOKUP($C38,'Coverage Reference'!$B$4:$H$21,5,FALSE)*(F38+H38)) -> 0 | L38: =IF(ISNA(VLOOKUP($C38,'Coverage Reference'!$B$4:$H$21,6,FALSE))=TRUE,0,VLOOKUP($C38,'Coverage Reference'!$B$4:$H$21,6,FALSE)*(F38+H38)) -> 0 | M38: 2 | N38: 0.5
A39: =VLOOKUP($C39,'Article Reference'!$A$3:$C$40,2,FALSE) -> Xzemplar® fungicide | B39: =VLOOKUP($C39,'Article Reference'!$A$3:$C$40,3,FALSE) -> 2 x 114 oz | C39: 59013833 | D39: =VLOOKUP($C39,'Article Reference'!$A$3:$E$17,5,FALSE) -> 3702.72 | E39: =CEILING(ROUNDUP(IF(ISNA(VLOOKUP(C39,'Step 1 - Fungicide Planner'!$K$20:$N$34,4,FALSE))=TRUE,"",VLOOKUP(C39,'Step 1 - Fungicide Planner'!$K$20:$N$34,4,FALSE)),M39),N39) -> 0 | F39: 0 | G39: 0 | H39: 0 | I39: 0 | J39: =IF(ISNA(VLOOKUP($C39,'Coverage Reference'!$B$4:$H$21,4,FALSE))=TRUE,0,VLOOKUP($C39,'Coverage Reference'!$B$4:$H$21,4,FALSE)*(F39+H39)) -> 0 | K39: =IF(ISNA(VLOOKUP($C39,'Coverage Reference'!$B$4:$H$21,5,FALSE))=TRUE,0,VLOOKUP($C39,'Coverage Reference'!$B$4:$H$21,5,FALSE)*(F39+H39)) -> 0 | L39: =IF(ISNA(VLOOKUP($C39,'Coverage Reference'!$B$4:$H$21,6,FALSE))=TRUE,0,VLOOKUP($C39,'Coverage Reference'!$B$4:$H$21,6,FALSE)*(F39+H39)) -> 0 | M39: 2 | N39: 0.5
A40: =VLOOKUP($C40,'Article Reference'!$A$3:$C$40,2,FALSE) -> Xzemplar® fungicide | B40: =VLOOKUP($C40,'Article Reference'!$A$3:$C$40,3,FALSE) -> 4 x 11.4 oz | C40: 59014120 | D40: =VLOOKUP($C40,'Article Reference'!$A$3:$E$17,5,FALSE) -> 885.56 | E40: =CEILING(ROUNDUP(IF(ISNA(VLOOKUP(C40,'Step 1 - Fungicide Planner'!$K$20:$N$34,4,FALSE))=TRUE,"",VLOOKUP(C40,'Step 1 - Fungicide Planner'!$K$20:$N$34,4,FALSE)),M40),N40) -> 0 | F40: 0 | G40: =D40*F40 -> 0 | H40: 0 | I40: =H40*D40 -> 0 | J40: =IF(ISNA(VLOOKUP($C40,'Coverage Reference'!$B$4:$H$21,4,FALSE))=TRUE,0,VLOOKUP($C40,'Coverage Reference'!$B$4:$H$21,4,FALSE)*(F40+H40)) -> 0 | K40: =IF(ISNA(VLOOKUP($C40,'Coverage Reference'!$B$4:$H$21,5,FALSE))=TRUE,0,VLOOKUP($C40,'Coverage Reference'!$B$4:$H$21,5,FALSE)*(F40+H40)) -> 0 | L40: =IF(ISNA(VLOOKUP($C40,'Coverage Reference'!$B$4:$H$21,6,FALSE))=TRUE,0,VLOOKUP($C40,'Coverage Reference'!$B$4:$H$21,6,FALSE)*(F40+H40)) -> 0 | M40: 2 | N40: 0.25
A41: QUALIFYING FUNGICIDE EOP SUB-TOTAL | G41: =SUM(G26:G40) -> 0 | I41: =SUM(I26:I40) -> 0 | J41: =I41+G41 -> 0
A42: Qualifying EOP Products | B42: Package | C42: Article Number | D42: Redemption Value | F42: EOP Order (Cases) | G42: EOP Sales | J42: Acres Low | K42: Acres Mid | L42: Acres High
A43: Insecticides
A44: =VLOOKUP($C44,'Article Reference'!$A$5:$D$53,2,FALSE) -> Amdro Pro Fire Ant Bait | B44: =VLOOKUP($C44,'Article Reference'!$A$5:$D$53,3,FALSE) -> 1 x 25lbs | C44: 59021451 | D44: =VLOOKUP($C44,'Article Reference'!$A$5:$E$53,5,FALSE) -> 625 | F44: 0 | G44: =F44*D44 -> 0 | J44: =IF(ISNA(VLOOKUP($C44,'Coverage Reference'!$B$6:$H$21,4,FALSE))=TRUE,0,VLOOKUP($C44,'Coverage Reference'!$B$6:$H$21,4,FALSE)*(F44+H44)) -> 0 | K44: =IF(ISNA(VLOOKUP($C44,'Coverage Reference'!$B$6:$H$21,5,FALSE))=TRUE,0,VLOOKUP($C44,'Coverage Reference'!$B$6:$H$21,5,FALSE)*(F44+H44)) -> 0 | L44: =IF(ISNA(VLOOKUP($C44,'Coverage Reference'!$B$6:$H$21,6,FALSE))=TRUE,0,VLOOKUP($C44,'Coverage Reference'!$B$6:$H$21,6,FALSE)*(F44+H44)) -> 0
A45: =VLOOKUP($C45,'Article Reference'!$A$5:$D$53,2,FALSE) -> Siesta® Fire Ant Bait | B45: =VLOOKUP($C45,'Article Reference'!$A$5:$D$53,3,FALSE) -> 15 lbs | C45: 59011057 | D45: =VLOOKUP($C45,'Article Reference'!$A$5:$E$53,5,FALSE) -> 318.75 | F45: 0 | G45: =F45*D45 -> 0 | J45: =IF(ISNA(VLOOKUP($C45,'Coverage Reference'!$B$6:$H$21,4,FALSE))=TRUE,0,VLOOKUP($C45,'Coverage Reference'!$B$6:$H$21,4,FALSE)*(F45+H45)) -> 0 | K45: =IF(ISNA(VLOOKUP($C45,'Coverage Reference'!$B$6:$H$21,5,FALSE))=TRUE,0,VLOOKUP($C45,'Coverage Reference'!$B$6:$H$21,5,FALSE)*(F45+H45)) -> 0 | L45: =IF(ISNA(VLOOKUP($C45,'Coverage Reference'!$B$6:$H$21,6,FALSE))=TRUE,0,VLOOKUP($C45,'Coverage Reference'!$B$6:$H$21,6,FALSE)*(F45+H45)) -> 0
A46: =VLOOKUP($C46,'Article Reference'!$A$5:$D$53,2,FALSE) -> Sultan® miticide | B46: =VLOOKUP($C46,'Article Reference'!$A$5:$D$53,3,FALSE) -> 4 x 0.125 gal | C46: 59023753 | D46: =VLOOKUP($C46,'Article Reference'!$A$5:$E$53,5,FALSE) -> 760.52 | F46: 0 | G46: 0 | J46: =IF(ISNA(VLOOKUP($C46,'Coverage Reference'!$B$6:$H$21,4,FALSE))=TRUE,0,VLOOKUP($C46,'Coverage Reference'!$B$6:$H$21,4,FALSE)*(F46+H46)) -> 0 | K46: =IF(ISNA(VLOOKUP($C46,'Coverage Reference'!$B$6:$H$21,5,FALSE))=TRUE,0,VLOOKUP($C46,'Coverage Reference'!$B$6:$H$21,5,FALSE)*(F46+H46)) -> 0 | L46: =IF(ISNA(VLOOKUP($C46,'Coverage Reference'!$B$6:$H$21,6,FALSE))=TRUE,0,VLOOKUP($C46,'Coverage Reference'!$B$6:$H$21,6,FALSE)*(F46+H46)) -> 0
A47: =VLOOKUP($C47,'Article Reference'!$A$5:$D$53,2,FALSE) -> Ventigra® insecticide | B47: =VLOOKUP($C47,'Article Reference'!$A$5:$D$53,3,FALSE) -> 4 x 20 oz | C47: 59014680 | D47: =VLOOKUP($C47,'Article Reference'!$A$5:$E$53,5,FALSE) -> 1397.6 | F47: 0 | G47: 0 | J47: =IF(ISNA(VLOOKUP($C47,'Coverage Reference'!$B$6:$H$21,4,FALSE))=TRUE,0,VLOOKUP($C47,'Coverage Reference'!$B$6:$H$21,4,FALSE)*(F47+H47)) -> 0 | K47: =IF(ISNA(VLOOKUP($C47,'Coverage Reference'!$B$6:$H$21,5,FALSE))=TRUE,0,VLOOKUP($C47,'Coverage Reference'!$B$6:$H$21,5,FALSE)*(F47+H47)) -> 0 | L47: =IF(ISNA(VLOOKUP($C47,'Coverage Reference'!$B$6:$H$21,6,FALSE))=TRUE,0,VLOOKUP($C47,'Coverage Reference'!$B$6:$H$21,6,FALSE)*(F47+H47)) -> 0
A48: Fungicides
A49: =VLOOKUP($C49,'Article Reference'!$A$5:$D$53,2,FALSE) -> Pageant® Intrinsic® brand Fungicide | B49: =VLOOKUP($C49,'Article Reference'!$A$5:$D$53,3,FALSE) -> 4 x 1 lb | C49: 59012349 | D49: =VLOOKUP($C49,'Article Reference'!$A$5:$E$53,5,FALSE) -> 472.76 | F49: 0 | G49: 0 | J49: =IF(ISNA(VLOOKUP($C49,'Coverage Reference'!$B$6:$H$21,4,FALSE))=TRUE,0,VLOOKUP($C49,'Coverage Reference'!$B$6:$H$21,4,FALSE)*(F49+H49)) -> 0 | K49: =IF(ISNA(VLOOKUP($C49,'Coverage Reference'!$B$6:$H$21,5,FALSE))=TRUE,0,VLOOKUP($C49,'Coverage Reference'!$B$6:$H$21,5,FALSE)*(F49+H49)) -> 0 | L49: =IF(ISNA(VLOOKUP($C49,'Coverage Reference'!$B$6:$H$21,6,FALSE))=TRUE,0,VLOOKUP($C49,'Coverage Reference'!$B$6:$H$21,6,FALSE)*(F49+H49)) -> 0
A50: =VLOOKUP($C50,'Article Reference'!$A$5:$D$53,2,FALSE) -> Pillar® G Intrinsic® brand fungicide | B50: =VLOOKUP($C50,'Article Reference'!$A$5:$D$53,3,FALSE) -> 15 lbs bag | C50: 59017959 | D50: =VLOOKUP($C50,'Article Reference'!$A$5:$E$53,5,FALSE) -> 60.75 | F50: 0 | G50: =F50*D50 -> 0 | J50: =IF(ISNA(VLOOKUP($C50,'Coverage Reference'!$B$6:$H$21,4,FALSE))=TRUE,0,VLOOKUP($C50,'Coverage Reference'!$B$6:$H$21,4,FALSE)*(F50+H50)) -> 0 | K50: =IF(ISNA(VLOOKUP($C50,'Coverage Reference'!$B$6:$H$21,5,FALSE))=TRUE,0,VLOOKUP($C50,'Coverage Reference'!$B$6:$H$21,5,FALSE)*(F50+H50)) -> 0 | L50: =IF(ISNA(VLOOKUP($C50,'Coverage Reference'!$B$6:$H$21,6,FALSE))=TRUE,0,VLOOKUP($C50,'Coverage Reference'!$B$6:$H$21,6,FALSE)*(F50+H50)) -> 0
A51: =VLOOKUP($C51,'Article Reference'!$A$5:$D$53,2,FALSE) -> Pillar® G Intrinsic® brand fungicide | B51: =VLOOKUP($C51,'Article Reference'!$A$5:$D$53,3,FALSE) -> 30 lbs bag | C51: 59012784 | D51: =VLOOKUP($C51,'Article Reference'!$A$5:$E$53,5,FALSE) -> 112.5 | F51: 0 | G51: 0 | J51: =IF(ISNA(VLOOKUP($C51,'Coverage Reference'!$B$6:$H$21,4,FALSE))=TRUE,0,VLOOKUP($C51,'Coverage Reference'!$B$6:$H$21,4,FALSE)*(F51+H51)) -> 0 | K51: =IF(ISNA(VLOOKUP($C51,'Coverage Reference'!$B$6:$H$21,5,FALSE))=TRUE,0,VLOOKUP($C51,'Coverage Reference'!$B$6:$H$21,5,FALSE)*(F51+H51)) -> 0 | L51: =IF(ISNA(VLOOKUP($C51,'Coverage Reference'!$B$6:$H$21,6,FALSE))=TRUE,0,VLOOKUP($C51,'Coverage Reference'!$B$6:$H$21,6,FALSE)*(F51+H51)) -> 0
A52: Herbicides
A53: =VLOOKUP($C53,'Article Reference'!$A$5:$D$53,2,FALSE) -> Drive® XLR8 herbicide | B53: =VLOOKUP($C53,'Article Reference'!$A$5:$D$53,3,FALSE) -> 4 x 0.5 gal | C53: 59011404 | D53: =VLOOKUP($C53,'Article Reference'!$A$5:$E$53,5,FALSE) -> 228.13 | F53: 0 | G53: 0 | J53: =IF(ISNA(VLOOKUP($C53,'Coverage Reference'!$B$6:$H$21,4,FALSE))=TRUE,0,VLOOKUP($C53,'Coverage Reference'!$B$6:$H$21,4,FALSE)*(F53+H53)) -> 0 | K53: =IF(ISNA(VLOOKUP($C53,'Coverage Reference'!$B$6:$H$21,5,FALSE))=TRUE,0,VLOOKUP($C53,'Coverage Reference'!$B$6:$H$21,5,FALSE)*(F53+H53)) -> 0 | L53: =IF(ISNA(VLOOKUP($C53,'Coverage Reference'!$B$6:$H$21,6,FALSE))=TRUE,0,VLOOKUP($C53,'Coverage Reference'!$B$6:$H$21,6,FALSE)*(F53+H53)) -> 0
A54: =VLOOKUP($C54,'Article Reference'!$A$5:$D$53,2,FALSE) -> Drive® XLR8 herbicide | B54: =VLOOKUP($C54,'Article Reference'!$A$5:$D$53,3,FALSE) -> 2 x 2.5 gal | C54: 59018043 | D54: =VLOOKUP($C54,'Article Reference'!$A$5:$E$53,5,FALSE) -> 529.69 | F54: 0 | G54: =F54*D54 -> 0
A55: =VLOOKUP($C55,'Article Reference'!$A$5:$D$53,2,FALSE) -> FreeHand® 1.75G CA herbicide | B55: =VLOOKUP($C55,'Article Reference'!$A$5:$D$53,3,FALSE) -> 1 x 50 lb | C55: 59013674 | D55: =VLOOKUP($C55,'Article Reference'!$A$5:$E$53,5,FALSE) -> 119 | F55: 0 | G55: 0 | J55: =IF(ISNA(VLOOKUP($C55,'Coverage Reference'!$B$6:$H$21,4,FALSE))=TRUE,0,VLOOKUP($C55,'Coverage Reference'!$B$6:$H$21,4,FALSE)*(F55+H55)) -> 0 | K55: =IF(ISNA(VLOOKUP($C55,'Coverage Reference'!$B$6:$H$21,5,FALSE))=TRUE,0,VLOOKUP($C55,'Coverage Reference'!$B$6:$H$21,5,FALSE)*(F55+H55)) -> 0 | L55: =IF(ISNA(VLOOKUP($C55,'Coverage Reference'!$B$6:$H$21,6,FALSE))=TRUE,0,VLOOKUP($C55,'Coverage Reference'!$B$6:$H$21,6,FALSE)*(F55+H55)) -> 0
A56: =VLOOKUP($C56,'Article Reference'!$A$5:$D$53,2,FALSE) -> Pendulum® 2G herbicide | B56: =VLOOKUP($C56,'Article Reference'!$A$5:$D$53,3,FALSE) -> 40 lbs bag | C56: 59015072 | D56: =VLOOKUP($C56,'Article Reference'!$A$5:$E$53,5,FALSE) -> 92 | F56: 0 | G56: 0 | J56: =IF(ISNA(VLOOKUP($C56,'Coverage Reference'!$B$6:$H$21,4,FALSE))=TRUE,0,VLOOKUP($C56,'Coverage Reference'!$B$6:$H$21,4,FALSE)*(F56+H56)) -> 0 | K56: =IF(ISNA(VLOOKUP($C56,'Coverage Reference'!$B$6:$H$21,5,FALSE))=TRUE,0,VLOOKUP($C56,'Coverage Reference'!$B$6:$H$21,5,FALSE)*(F56+H56)) -> 0 | L56: =IF(ISNA(VLOOKUP($C56,'Coverage Reference'!$B$6:$H$21,6,FALSE))=TRUE,0,VLOOKUP($C56,'Coverage Reference'!$B$6:$H$21,6,FALSE)*(F56+H56)) -> 0
A57: =VLOOKUP($C57,'Article Reference'!$A$5:$D$53,2,FALSE) -> Pendulum® 2G herbicide | B57: =VLOOKUP($C57,'Article Reference'!$A$5:$D$53,3,FALSE) -> 20 lbs bag | C57: 59017972 | D57: =VLOOKUP($C57,'Article Reference'!$A$5:$E$53,5,FALSE) -> 52.5 | F57: 0 | G57: 0 | J57: =IF(ISNA(VLOOKUP($C57,'Coverage Reference'!$B$6:$H$21,4,FALSE))=TRUE,0,VLOOKUP($C57,'Coverage Reference'!$B$6:$H$21,4,FALSE)*(F57+H57)) -> 0 | K57: =IF(ISNA(VLOOKUP($C57,'Coverage Reference'!$B$6:$H$21,5,FALSE))=TRUE,0,VLOOKUP($C57,'Coverage Reference'!$B$6:$H$21,5,FALSE)*(F57+H57)) -> 0 | L57: =IF(ISNA(VLOOKUP($C57,'Coverage Reference'!$B$6:$H$21,6,FALSE))=TRUE,0,VLOOKUP($C57,'Coverage Reference'!$B$6:$H$21,6,FALSE)*(F57+H57)) -> 0
A58: =VLOOKUP($C58,'Article Reference'!$A$5:$D$53,2,FALSE) -> Pendulum® AquaCap herbicide | B58: =VLOOKUP($C58,'Article Reference'!$A$5:$D$53,3,FALSE) -> 2 x 2.5 gal | C58: 59049276 | D58: =VLOOKUP($C58,'Article Reference'!$A$5:$E$53,5,FALSE) -> 290.63 | F58: 0 | G58: =F58*D58 -> 0 | J58: =IF(ISNA(VLOOKUP($C58,'Coverage Reference'!$B$6:$H$21,4,FALSE))=TRUE,0,VLOOKUP($C58,'Coverage Reference'!$B$6:$H$21,4,FALSE)*(F58+H58)) -> 0 | K58: =IF(ISNA(VLOOKUP($C58,'Coverage Reference'!$B$6:$H$21,5,FALSE))=TRUE,0,VLOOKUP($C58,'Coverage Reference'!$B$6:$H$21,5,FALSE)*(F58+H58)) -> 0 | L58: =IF(ISNA(VLOOKUP($C58,'Coverage Reference'!$B$6:$H$21,6,FALSE))=TRUE,0,VLOOKUP($C58,'Coverage Reference'!$B$6:$H$21,6,FALSE)*(F58+H58)) -> 0
A59: =VLOOKUP($C59,'Article Reference'!$A$5:$D$53,2,FALSE) -> Pendulum® AquaCap herbicide | B59: =VLOOKUP($C59,'Article Reference'!$A$5:$D$53,3,FALSE) -> 1 x 15 gal | C59: 59011279 | D59: =VLOOKUP($C59,'Article Reference'!$A$5:$E$53,5,FALSE) -> 1063.65 | F59: 0 | G59: 0 | J59: =IF(ISNA(VLOOKUP($C59,'Coverage Reference'!$B$6:$H$21,4,FALSE))=TRUE,0,VLOOKUP($C59,'Coverage Reference'!$B$6:$H$21,4,FALSE)*(F59+H59)) -> 0 | K59: =IF(ISNA(VLOOKUP($C59,'Coverage Reference'!$B$6:$H$21,5,FALSE))=TRUE,0,VLOOKUP($C59,'Coverage Reference'!$B$6:$H$21,5,FALSE)*(F59+H59)) -> 0 | L59: =IF(ISNA(VLOOKUP($C59,'Coverage Reference'!$B$6:$H$21,6,FALSE))=TRUE,0,VLOOKUP($C59,'Coverage Reference'!$B$6:$H$21,6,FALSE)*(F59+H59)) -> 0
A60: =VLOOKUP($C60,'Article Reference'!$A$5:$D$53,2,FALSE) -> Pylex® herbicide | B60: =VLOOKUP($C60,'Article Reference'!$A$5:$D$53,3,FALSE) -> 4 x 4 oz | C60: 59018005 | D60: =VLOOKUP($C60,'Article Reference'!$A$5:$E$53,5,FALSE) -> 1595.04 | F60: 0 | G60: 0 | J60: =IF(ISNA(VLOOKUP($C60,'Coverage Reference'!$B$6:$H$21,4,FALSE))=TRUE,0,VLOOKUP($C60,'Coverage Reference'!$B$6:$H$21,4,FALSE)*(F60+H60)) -> 0 | K60: =IF(ISNA(VLOOKUP($C60,'Coverage Reference'!$B$6:$H$21,5,FALSE))=TRUE,0,VLOOKUP($C60,'Coverage Reference'!$B$6:$H$21,5,FALSE)*(F60+H60)) -> 0 | L60: =IF(ISNA(VLOOKUP($C60,'Coverage Reference'!$B$6:$H$21,6,FALSE))=TRUE,0,VLOOKUP($C60,'Coverage Reference'!$B$6:$H$21,6,FALSE)*(F60+H60)) -> 0
A61: =VLOOKUP($C61,'Article Reference'!$A$5:$D$53,2,FALSE) -> Tower® herbicide | B61: =VLOOKUP($C61,'Article Reference'!$A$5:$D$53,3,FALSE) -> 2 x 2.5 gal | C61: 59014247 | D61: =VLOOKUP($C61,'Article Reference'!$A$5:$E$53,5,FALSE) -> 2158.3 | F61: 0 | G61: 0 | J61: =IF(ISNA(VLOOKUP($C61,'Coverage Reference'!$B$6:$H$21,4,FALSE))=TRUE,0,VLOOKUP($C61,'Coverage Reference'!$B$6:$H$21,4,FALSE)*(F61+H61)) -> 0 | K61: =IF(ISNA(VLOOKUP($C61,'Coverage Reference'!$B$6:$H$21,5,FALSE))=TRUE,0,VLOOKUP($C61,'Coverage Reference'!$B$6:$H$21,5,FALSE)*(F61+H61)) -> 0 | L61: =IF(ISNA(VLOOKUP($C61,'Coverage Reference'!$B$6:$H$21,6,FALSE))=TRUE,0,VLOOKUP($C61,'Coverage Reference'!$B$6:$H$21,6,FALSE)*(F61+H61)) -> 0
A62: Colorants
A63: =VLOOKUP($C63,'Article Reference'!$A$5:$D$53,2,FALSE) -> Admiral® lake colorant | B63: =VLOOKUP($C63,'Article Reference'!$A$5:$D$53,3,FALSE) -> 4 x 1 gal | C63: 59014151 | D63: =VLOOKUP($C63,'Article Reference'!$A$5:$E$53,5,FALSE) -> 280 | F63: 0 | G63: =F63*D63 -> 0 | J63: =IF(ISNA(VLOOKUP($C63,'Coverage Reference'!$B$6:$H$21,4,FALSE))=TRUE,0,VLOOKUP($C63,'Coverage Reference'!$B$6:$H$21,4,FALSE)*(F63+H63)) -> 0 | K63: =IF(ISNA(VLOOKUP($C63,'Coverage Reference'!$B$6:$H$21,5,FALSE))=TRUE,0,VLOOKUP($C63,'Coverage Reference'!$B$6:$H$21,5,FALSE)*(F63+H63)) -> 0 | L63: =IF(ISNA(VLOOKUP($C63,'Coverage Reference'!$B$6:$H$21,6,FALSE))=TRUE,0,VLOOKUP($C63,'Coverage Reference'!$B$6:$H$21,6,FALSE)*(F63+H63)) -> 0
A64: =VLOOKUP($C64,'Article Reference'!$A$5:$D$53,2,FALSE) -> Black Onyx lake & pond colorant | B64: =VLOOKUP($C64,'Article Reference'!$A$5:$D$53,3,FALSE) -> 4 x 1 gal | C64: 59013424 | D64: =VLOOKUP($C64,'Article Reference'!$A$5:$E$53,5,FALSE) -> 480 | F64: 0 | G64: 0 | J64: =IF(ISNA(VLOOKUP($C64,'Coverage Reference'!$B$6:$H$21,4,FALSE))=TRUE,0,VLOOKUP($C64,'Coverage Reference'!$B$6:$H$21,4,FALSE)*(F64+H64)) -> 0 | K64: =IF(ISNA(VLOOKUP($C64,'Coverage Reference'!$B$6:$H$21,5,FALSE))=TRUE,0,VLOOKUP($C64,'Coverage Reference'!$B$6:$H$21,5,FALSE)*(F64+H64)) -> 0 | L64: =IF(ISNA(VLOOKUP($C64,'Coverage Reference'!$B$6:$H$21,6,FALSE))=TRUE,0,VLOOKUP($C64,'Coverage Reference'!$B$6:$H$21,6,FALSE)*(F64+H64)) -> 0
A65: =VLOOKUP($C65,'Article Reference'!$A$5:$D$53,2,FALSE) -> Green Lawnger® colorant | B65: =VLOOKUP($C65,'Article Reference'!$A$5:$D$53,3,FALSE) -> 2 x 2.5 gal | C65: 59013430 | D65: =VLOOKUP($C65,'Article Reference'!$A$5:$E$53,5,FALSE) -> 418.75 | F65: 0 | G65: 0 | J65: =IF(ISNA(VLOOKUP($C65,'Coverage Reference'!$B$6:$H$21,4,FALSE))=TRUE,0,VLOOKUP($C65,'Coverage Reference'!$B$6:$H$21,4,FALSE)*(F65+H65)) -> 0 | K65: =IF(ISNA(VLOOKUP($C65,'Coverage Reference'!$B$6:$H$21,5,FALSE))=TRUE,0,VLOOKUP($C65,'Coverage Reference'!$B$6:$H$21,5,FALSE)*(F65+H65)) -> 0 | L65: =IF(ISNA(VLOOKUP($C65,'Coverage Reference'!$B$6:$H$21,6,FALSE))=TRUE,0,VLOOKUP($C65,'Coverage Reference'!$B$6:$H$21,6,FALSE)*(F65+H65)) -> 0
A66: =VLOOKUP($C66,'Article Reference'!$A$5:$D$53,2,FALSE) -> Green Lawnger® Transition HC colorant | B66: =VLOOKUP($C66,'Article Reference'!$A$5:$D$53,3,FALSE) -> 4 x 1 gal | C66: 59013410 | D66: =VLOOKUP($C66,'Article Reference'!$A$5:$E$53,5,FALSE) -> 875 | F66: 0 | G66: 0 | J66: =IF(ISNA(VLOOKUP($C66,'Coverage Reference'!$B$6:$H$21,4,FALSE))=TRUE,0,VLOOKUP($C66,'Coverage Reference'!$B$6:$H$21,4,FALSE)*(F66+H66)) -> 0 | K66: =IF(ISNA(VLOOKUP($C66,'Coverage Reference'!$B$6:$H$21,5,FALSE))=TRUE,0,VLOOKUP($C66,'Coverage Reference'!$B$6:$H$21,5,FALSE)*(F66+H66)) -> 0 | L66: =IF(ISNA(VLOOKUP($C66,'Coverage Reference'!$B$6:$H$21,6,FALSE))=TRUE,0,VLOOKUP($C66,'Coverage Reference'!$B$6:$H$21,6,FALSE)*(F66+H66)) -> 0
A67: =VLOOKUP($C67,'Article Reference'!$A$5:$D$53,2,FALSE) -> Green Lawnger® Transition HC colorant | B67: =VLOOKUP($C67,'Article Reference'!$A$5:$D$53,3,FALSE) -> 1 x 30 gal | C67: 59023772 | D67: =VLOOKUP($C67,'Article Reference'!$A$5:$E$53,5,FALSE) -> 2652 | F67: 0 | G67: =F67*D67 -> 0
A68: =VLOOKUP($C68,'Article Reference'!$A$5:$D$53,2,FALSE) -> Green Lawnger® Vision Pro colorant | B68: =VLOOKUP($C68,'Article Reference'!$A$5:$D$53,3,FALSE) -> 4 x 1 gal | C68: 59013342 | D68: =VLOOKUP($C68,'Article Reference'!$A$5:$E$53,5,FALSE) -> 790 | F68: 0 | G68: 0 | J68: =IF(ISNA(VLOOKUP($C68,'Coverage Reference'!$B$6:$H$21,4,FALSE))=TRUE,0,VLOOKUP($C68,'Coverage Reference'!$B$6:$H$21,4,FALSE)*(F68+H68)) -> 0 | K68: =IF(ISNA(VLOOKUP($C68,'Coverage Reference'!$B$6:$H$21,5,FALSE))=TRUE,0,VLOOKUP($C68,'Coverage Reference'!$B$6:$H$21,5,FALSE)*(F68+H68)) -> 0 | L68: =IF(ISNA(VLOOKUP($C68,'Coverage Reference'!$B$6:$H$21,6,FALSE))=TRUE,0,VLOOKUP($C68,'Coverage Reference'!$B$6:$H$21,6,FALSE)*(F68+H68)) -> 0
A69: Spray Indicators
A70: =VLOOKUP($C70,'Article Reference'!$A$5:$D$53,2,FALSE) -> Turf Mark spray indicator - blue | B70: =VLOOKUP($C70,'Article Reference'!$A$5:$D$53,3,FALSE) -> 12 x 0.25 gal | C70: 59013723 | D70: =VLOOKUP($C70,'Article Reference'!$A$5:$E$53,5,FALSE) -> 273.75 | F70: 0 | G70: 0 | J70: =IF(ISNA(VLOOKUP($C70,'Coverage Reference'!$B$6:$H$21,4,FALSE))=TRUE,0,VLOOKUP($C70,'Coverage Reference'!$B$6:$H$21,4,FALSE)*(F70+H70)) -> 0 | K70: =IF(ISNA(VLOOKUP($C70,'Coverage Reference'!$B$6:$H$21,5,FALSE))=TRUE,0,VLOOKUP($C70,'Coverage Reference'!$B$6:$H$21,5,FALSE)*(F70+H70)) -> 0 | L70: =IF(ISNA(VLOOKUP($C70,'Coverage Reference'!$B$6:$H$21,6,FALSE))=TRUE,0,VLOOKUP($C70,'Coverage Reference'!$B$6:$H$21,6,FALSE)*(F70+H70)) -> 0
A71: =VLOOKUP($C71,'Article Reference'!$A$5:$D$53,2,FALSE) -> Turf Mark spray indicator - blue | B71: =VLOOKUP($C71,'Article Reference'!$A$5:$D$53,3,FALSE) -> 1 x 30 gal | C71: 59013314 | D71: =VLOOKUP($C71,'Article Reference'!$A$5:$E$53,5,FALSE) -> 1717.5 | F71: 0 | G71: 0 | J71: =IF(ISNA(VLOOKUP($C71,'Coverage Reference'!$B$6:$H$21,4,FALSE))=TRUE,0,VLOOKUP($C71,'Coverage Reference'!$B$6:$H$21,4,FALSE)*(F71+H71)) -> 0 | K71: =IF(ISNA(VLOOKUP($C71,'Coverage Reference'!$B$6:$H$21,5,FALSE))=TRUE,0,VLOOKUP($C71,'Coverage Reference'!$B$6:$H$21,5,FALSE)*(F71+H71)) -> 0 | L71: =IF(ISNA(VLOOKUP($C71,'Coverage Reference'!$B$6:$H$21,6,FALSE))=TRUE,0,VLOOKUP($C71,'Coverage Reference'!$B$6:$H$21,6,FALSE)*(F71+H71)) -> 0
A72: =VLOOKUP($C72,'Article Reference'!$A$5:$D$53,2,FALSE) -> Turf Mark spray indicator - blue | B72: =VLOOKUP($C72,'Article Reference'!$A$5:$D$53,3,FALSE) -> 2 x 2.5 gal | C72: 59030213 | D72: =VLOOKUP($C72,'Article Reference'!$A$5:$E$53,5,FALSE) -> 305.63 | F72: 0 | G72: 0 | J72: =IF(ISNA(VLOOKUP($C72,'Coverage Reference'!$B$6:$H$21,4,FALSE))=TRUE,0,VLOOKUP($C72,'Coverage Reference'!$B$6:$H$21,4,FALSE)*(F72+H72)) -> 0 | K72: =IF(ISNA(VLOOKUP($C72,'Coverage Reference'!$B$6:$H$21,5,FALSE))=TRUE,0,VLOOKUP($C72,'Coverage Reference'!$B$6:$H$21,5,FALSE)*(F72+H72)) -> 0 | L72: =IF(ISNA(VLOOKUP($C72,'Coverage Reference'!$B$6:$H$21,6,FALSE))=TRUE,0,VLOOKUP($C72,'Coverage Reference'!$B$6:$H$21,6,FALSE)*(F72+H72)) -> 0
A73: =VLOOKUP($C73,'Article Reference'!$A$5:$D$53,2,FALSE) -> Turf Mark spray indicator - blue | B73: =VLOOKUP($C73,'Article Reference'!$A$5:$D$53,3,FALSE) -> 4 x 1 gal | C73: 59013420 | D73: =VLOOKUP($C73,'Article Reference'!$A$5:$E$53,5,FALSE) -> 262.5 | F73: 0 | G73: =F73*D73 -> 0
A74: QUALIFYING EOP PRODUCTS SUB-TOTAL | G74: =SUM(G44:G73) -> 0 | J74: =G74 -> 0
A79: BASF has developed this calculator using formulas that approximate the rebate amount under the 2026 Early Order Program. The calculator is being shared with you for information purposes only and for your private use in preparing your own calculations. While every effort has been made to ensure the accuracy and reliability of the information and formulas, no guarantee is given nor responsibility taken by BASF for the accuracy of the calculator or the applicability to your particular circumstances. BASF PROVIDES THIS CALCULATOR AND ANY RESULT THEREFROM AS IS WITH ALL FAULTS AND WITH NO WARRANTY WHATSOEVER, EITHER EXPRESS OR IMPLIED, INCLUDING ANY WARRANTIES OF MERCHANTABILITY AND FITNESS FOR PARTICULAR PURPOSE. YOU ASSUME ANY AND ALL RISKS IN USING THE CALCULATOR AND RELYING ON THE INFORMATION CONTAINED HEREIN. IN NO CIRCUMSTANCES SHALL BASF BE LIABLE FOR ANY DAMAGES WHATSOEVER, INCLUDING BUT NOT LIMITED TO LOSS OF PROFIT, LOSS OF BUSINESS, LOSS OF SAVINGS, OR CONSEQUENTIAL DAMAGES, EVEN IF BASF HAS BEEN NOTIFIED AS SUCH.

Sheet Step 2 - OldManage Apps (hidden)
A15: Enter Acres for your Course (Required)
A16: Fairways & Tees Acres | C16: 40
A17: Greens Acres | C17: 10
A19: Please complete Yellow "Use Area" cells with either Fairways or Greens
A20: Fungicide Planner | M20: Fairways
A21: Product Name | B21: Case Size | C21: Use Area | D21: Low Rate | F21: Mid Rate | H21: High Rate | M21: Greens
D22: Total Acres | E22: Applications | F22: Total Acres | G22: Applications | H22: Total Acres | I22: Applications
A23: Emerald | B23: 10 x .49 lb. | C23: Fairways | D23: =SUMIFS('Step 2 - Order Planner'!J$26:J$39,'Step 2 - Order Planner'!$C$26:$C$39,$K23)+SUMIFS('Step 2 - Order Planner'!J$44:J$72,'Step 2 - Order Planner'!$C$44:$C$72,$K23) -> 0 | E23: =IF(OR($C$16=0,$C$17=0),"Please Enter Acreage",IF(C23="Greens",D23/$C$17,IF(C23="Fairways",D23/$C$16,0))) -> 0 | F23: =SUMIFS('Step 2 - Order Planner'!K$26:K$39,'Step 2 - Order Planner'!$C$26:$C$39,$K23)+SUMIFS('Step 2 - Order Planner'!K$44:K$72,'Step 2 - Order Planner'!$C$44:$C$72,$K23) -> 0 | G23: =IF(OR($C$16=0,$C$17=0),"Please Enter Acreage",IF(C23="Greens",F23/$C$17,IF(C23="Fairways",F23/$C$16,0))) -> 0 | H23: =SUMIFS('Step 2 - Order Planner'!L$26:L$39,'Step 2 - Order Planner'!$C$26:$C$39,$K23)+SUMIFS('Step 2 - Order Planner'!L$44:L$72,'Step 2 - Order Planner'!$C$44:$C$72,$K23) -> 0 | I23: =IF(OR($C$16=0,$C$17=0),"Please Enter Acreage",IF(C23="Greens",H23/$C$17,IF(C23="Fairways",H23/$C$16,0))) -> 0 | K23: 59021463
B24: 50 x .49 lb. | D24: =SUMIFS('Step 2 - Order Planner'!J$26:J$39,'Step 2 - Order Planner'!$C$26:$C$39,$K24)+SUMIFS('Step 2 - Order Planner'!J$44:J$72,'Step 2 - Order Planner'!$C$44:$C$72,$K24) -> 0 | E24: 0 | F24: =SUMIFS('Step 2 - Order Planner'!K$26:K$39,'Step 2 - Order Planner'!$C$26:$C$39,$K24)+SUMIFS('Step 2 - Order Planner'!K$44:K$72,'Step 2 - Order Planner'!$C$44:$C$72,$K24) -> 0 | G24: =IF(OR($C$16=0,$C$17=0),"Please Enter Acreage",IF(C24="Greens",F24/$C$17,IF(C24="Fairways",F24/$C$16,0))) -> 0 | H24: =SUMIFS('Step 2 - Order Planner'!L$26:L$39,'Step 2 - Order Planner'!$C$26:$C$39,$K24)+SUMIFS('Step 2 - Order Planner'!L$44:L$72,'Step 2 - Order Planner'!$C$44:$C$72,$K24) -> 0 | I24: 0 | K24: 59012825
A25: Honor | B25: 1 x 36 lb | D25: =SUMIFS('Step 2 - Order Planner'!J$26:J$39,'Step 2 - Order Planner'!$C$26:$C$39,$K25)+SUMIFS('Step 2 - Order Planner'!J$44:J$72,'Step 2 - Order Planner'!$C$44:$C$72,$K25) -> 0 | E25: 0 | F25: =SUMIFS('Step 2 - Order Planner'!K$26:K$39,'Step 2 - Order Planner'!$C$26:$C$39,$K25)+SUMIFS('Step 2 - Order Planner'!K$44:K$72,'Step 2 - Order Planner'!$C$44:$C$72,$K25) -> 0 | G25: =IF(OR($C$16=0,$C$17=0),"Please Enter Acreage",IF(C25="Greens",F25/$C$17,IF(C25="Fairways",F25/$C$16,0))) -> 0 | H25: =SUMIFS('Step 2 - Order Planner'!L$26:L$39,'Step 2 - Order Planner'!$C$26:$C$39,$K25)+SUMIFS('Step 2 - Order Planner'!L$44:L$72,'Step 2 - Order Planner'!$C$44:$C$72,$K25) -> 0 | I25: 0 | K25: 59012885
B26: 6 x 3 lb | D26: =SUMIFS('Step 2 - Order Planner'!J$26:J$39,'Step 2 - Order Planner'!$C$26:$C$39,$K26)+SUMIFS('Step 2 - Order Planner'!J$44:J$72,'Step 2 - Order Planner'!$C$44:$C$72,$K26) -> 0 | E26: 0 | F26: =SUMIFS('Step 2 - Order Planner'!K$26:K$39,'Step 2 - Order Planner'!$C$26:$C$39,$K26)+SUMIFS('Step 2 - Order Planner'!K$44:K$72,'Step 2 - Order Planner'!$C$44:$C$72,$K26) -> 0 | G26: 0 | H26: =SUMIFS('Step 2 - Order Planner'!L$26:L$39,'Step 2 - Order Planner'!$C$26:$C$39,$K26)+SUMIFS('Step 2 - Order Planner'!L$44:L$72,'Step 2 - Order Planner'!$C$44:$C$72,$K26) -> 0 | I26: 0 | K26: 59012350
A27: Insignia SC | B27: 2 x 2.5 gal | D27: =SUMIFS('Step 2 - Order Planner'!J$26:J$39,'Step 2 - Order Planner'!$C$26:$C$39,$K27)+SUMIFS('Step 2 - Order Planner'!J$44:J$72,'Step 2 - Order Planner'!$C$44:$C$72,$K27) -> 0 | E27: 0 | F27: =SUMIFS('Step 2 - Order Planner'!K$26:K$39,'Step 2 - Order Planner'!$C$26:$C$39,$K27)+SUMIFS('Step 2 - Order Planner'!K$44:K$72,'Step 2 - Order Planner'!$C$44:$C$72,$K27) -> 0 | G27: =IF(OR($C$16=0,$C$17=0),"Please Enter Acreage",IF(C27="Greens",F27/$C$17,IF(C27="Fairways",F27/$C$16,0))) -> 0 | H27: =SUMIFS('Step 2 - Order Planner'!L$26:L$39,'Step 2 - Order Planner'!$C$26:$C$39,$K27)+SUMIFS('Step 2 - Order Planner'!L$44:L$72,'Step 2 - Order Planner'!$C$44:$C$72,$K27) -> 0 | I27: 0 | K27: 59014135
B28: 4 x 30.5 oz | D28: =SUMIFS('Step 2 - Order Planner'!J$26:J$39,'Step 2 - Order Planner'!$C$26:$C$39,$K28)+SUMIFS('Step 2 - Order Planner'!J$44:J$72,'Step 2 - Order Planner'!$C$44:$C$72,$K28) -> 0 | E28: 0 | F28: =SUMIFS('Step 2 - Order Planner'!K$26:K$39,'Step 2 - Order Planner'!$C$26:$C$39,$K28)+SUMIFS('Step 2 - Order Planner'!K$44:K$72,'Step 2 - Order Planner'!$C$44:$C$72,$K28) -> 0 | G28: =IF(OR($C$16=0,$C$17=0),"Please Enter Acreage",IF(C28="Greens",F28/$C$17,IF(C28="Fairways",F28/$C$16,0))) -> 0 | H28: =SUMIFS('Step 2 - Order Planner'!L$26:L$39,'Step 2 - Order Planner'!$C$26:$C$39,$K28)+SUMIFS('Step 2 - Order Planner'!L$44:L$72,'Step 2 - Order Planner'!$C$44:$C$72,$K28) -> 0 | I28: =IF(OR($C$16=0,$C$17=0),"Please Enter Acreage",IF(C28="Greens",H28/$C$17,IF(C28="Fairways",H28/$C$16,0))) -> 0 | K28: 59014134
A29: Lexicon | B29: 4 x 21 oz | D29: =SUMIFS('Step 2 - Order Planner'!J$26:J$39,'Step 2 - Order Planner'!$C$26:$C$39,$K29)+SUMIFS('Step 2 - Order Planner'!J$44:J$72,'Step 2 - Order Planner'!$C$44:$C$72,$K29) -> 0 | E29: 0 | F29: =SUMIFS('Step 2 - Order Planner'!K$26:K$39,'Step 2 - Order Planner'!$C$26:$C$39,$K29)+SUMIFS('Step 2 - Order Planner'!K$44:K$72,'Step 2 - Order Planner'!$C$44:$C$72,$K29) -> 0 | G29: 0 | H29: =SUMIFS('Step 2 - Order Planner'!L$26:L$39,'Step 2 - Order Planner'!$C$26:$C$39,$K29)+SUMIFS('Step 2 - Order Planner'!L$44:L$72,'Step 2 - Order Planner'!$C$44:$C$72,$K29) -> 0 | I29: 0 | K29: 59013840
A30: Maxtima | B30: 4 x26 oz | D30: =SUMIFS('Step 2 - Order Planner'!J$26:J$39,'Step 2 - Order Planner'!$C$26:$C$39,$K30)+SUMIFS('Step 2 - Order Planner'!J$44:J$72,'Step 2 - Order Planner'!$C$44:$C$72,$K30) -> 0 | E30: 0 | F30: =SUMIFS('Step 2 - Order Planner'!K$26:K$39,'Step 2 - Order Planner'!$C$26:$C$39,$K30)+SUMIFS('Step 2 - Order Planner'!K$44:K$72,'Step 2 - Order Planner'!$C$44:$C$72,$K30) -> 0 | G30: 0 | H30: =SUMIFS('Step 2 - Order Planner'!L$26:L$39,'Step 2 - Order Planner'!$C$26:$C$39,$K30)+SUMIFS('Step 2 - Order Planner'!L$44:L$72,'Step 2 - Order Planner'!$C$44:$C$72,$K30) -> 0 | I30: 0 | K30: 59018087
B31: 2x 2.5 gal | D31: =SUMIFS('Step 2 - Order Planner'!J$26:J$39,'Step 2 - Order Planner'!$C$26:$C$39,$K31)+SUMIFS('Step 2 - Order Planner'!J$44:J$72,'Step 2 - Order Planner'!$C$44:$C$72,$K31) -> 0 | E31: 0 | F31: =SUMIFS('Step 2 - Order Planner'!K$26:K$39,'Step 2 - Order Planner'!$C$26:$C$39,$K31)+SUMIFS('Step 2 - Order Planner'!K$44:K$72,'Step 2 - Order Planner'!$C$44:$C$72,$K31) -> 0 | G31: =IF(OR($C$16=0,$C$17=0),"Please Enter Acreage",IF(C31="Greens",F31/$C$17,IF(C31="Fairways",F31/$C$16,0))) -> 0 | H31: =SUMIFS('Step 2 - Order Planner'!L$26:L$39,'Step 2 - Order Planner'!$C$26:$C$39,$K31)+SUMIFS('Step 2 - Order Planner'!L$44:L$72,'Step 2 - Order Planner'!$C$44:$C$72,$K31) -> 0 | I31: 0 | K31: 59018071
A32: Navicon | B32: 4x37 fl oz | D32: =SUMIFS('Step 2 - Order Planner'!J$26:J$39,'Step 2 - Order Planner'!$C$26:$C$39,$K32)+SUMIFS('Step 2 - Order Planner'!J$44:J$72,'Step 2 - Order Planner'!$C$44:$C$72,$K32) -> 0 | E32: 0 | F32: =SUMIFS('Step 2 - Order Planner'!K$26:K$39,'Step 2 - Order Planner'!$C$26:$C$39,$K32)+SUMIFS('Step 2 - Order Planner'!K$44:K$72,'Step 2 - Order Planner'!$C$44:$C$72,$K32) -> 0 | G32: 0 | H32: =SUMIFS('Step 2 - Order Planner'!L$26:L$39,'Step 2 - Order Planner'!$C$26:$C$39,$K32)+SUMIFS('Step 2 - Order Planner'!L$44:L$72,'Step 2 - Order Planner'!$C$44:$C$72,$K32) -> 0 | I32: 0 | K32: 59018094
B33: 2x2.5 gal | D33: =SUMIFS('Step 2 - Order Planner'!J$26:J$39,'Step 2 - Order Planner'!$C$26:$C$39,$K33)+SUMIFS('Step 2 - Order Planner'!J$44:J$72,'Step 2 - Order Planner'!$C$44:$C$72,$K33) -> 0 | E33: 0 | F33: =SUMIFS('Step 2 - Order Planner'!K$26:K$39,'Step 2 - Order Planner'!$C$26:$C$39,$K33)+SUMIFS('Step 2 - Order Planner'!K$44:K$72,'Step 2 - Order Planner'!$C$44:$C$72,$K33) -> 0 | G33: 0 | H33: =SUMIFS('Step 2 - Order Planner'!L$26:L$39,'Step 2 - Order Planner'!$C$26:$C$39,$K33)+SUMIFS('Step 2 - Order Planner'!L$44:L$72,'Step 2 - Order Planner'!$C$44:$C$72,$K33) -> 0 | I33: 0 | K33: 59018095
A34: Pillar G | B34: 15 lbs | D34: =SUMIFS('Step 2 - Order Planner'!J$26:J$39,'Step 2 - Order Planner'!$C$26:$C$39,$K34)+SUMIFS('Step 2 - Order Planner'!J$44:J$72,'Step 2 - Order Planner'!$C$44:$C$72,$K34) -> 0 | E34: 0 | F34: =SUMIFS('Step 2 - Order Planner'!K$26:K$39,'Step 2 - Order Planner'!$C$26:$C$39,$K34)+SUMIFS('Step 2 - Order Planner'!K$44:K$72,'Step 2 - Order Planner'!$C$44:$C$72,$K34) -> 0 | G34: =IF(OR($C$16=0,$C$17=0),"Please Enter Acreage",IF(C34="Greens",F34/$C$17,IF(C34="Fairways",F34/$C$16,0))) -> 0 | H34: =SUMIFS('Step 2 - Order Planner'!L$26:L$39,'Step 2 - Order Planner'!$C$26:$C$39,$K34)+SUMIFS('Step 2 - Order Planner'!L$44:L$72,'Step 2 - Order Planner'!$C$44:$C$72,$K34) -> 0 | I34: 0 | K34: 59017959
B35: 30 lbs | D35: =SUMIFS('Step 2 - Order Planner'!J$26:J$39,'Step 2 - Order Planner'!$C$26:$C$39,$K35)+SUMIFS('Step 2 - Order Planner'!J$44:J$72,'Step 2 - Order Planner'!$C$44:$C$72,$K35) -> 0 | E35: 0 | F35: =SUMIFS('Step 2 - Order Planner'!K$26:K$39,'Step 2 - Order Planner'!$C$26:$C$39,$K35)+SUMIFS('Step 2 - Order Planner'!K$44:K$72,'Step 2 - Order Planner'!$C$44:$C$72,$K35) -> 0 | G35: 0 | H35: =SUMIFS('Step 2 - Order Planner'!L$26:L$39,'Step 2 - Order Planner'!$C$26:$C$39,$K35)+SUMIFS('Step 2 - Order Planner'!L$44:L$72,'Step 2 - Order Planner'!$C$44:$C$72,$K35) -> 0 | I35: 0 | K35: 59012784
A36: Xzemplar | B36: 2 x 114 oz | D36: =SUMIFS('Step 2 - Order Planner'!J$26:J$39,'Step 2 - Order Planner'!$C$26:$C$39,$K36)+SUMIFS('Step 2 - Order Planner'!J$44:J$72,'Step 2 - Order Planner'!$C$44:$C$72,$K36) -> 0 | E36: =IF(OR($C$16=0,$C$17=0),"Please Enter Acreage",IF(C36="Greens",D36/$C$17,IF(C36="Fairways",D36/$C$16,0))) -> 0 | F36: =SUMIFS('Step 2 - Order Planner'!K$26:K$39,'Step 2 - Order Planner'!$C$26:$C$39,$K36)+SUMIFS('Step 2 - Order Planner'!K$44:K$72,'Step 2 - Order Planner'!$C$44:$C$72,$K36) -> 0 | G36: =IF(OR($C$16=0,$C$17=0),"Please Enter Acreage",IF(C36="Greens",F36/$C$17,IF(C36="Fairways",F36/$C$16,0))) -> 0 | H36: =SUMIFS('Step 2 - Order Planner'!L$26:L$39,'Step 2 - Order Planner'!$C$26:$C$39,$K36)+SUMIFS('Step 2 - Order Planner'!L$44:L$72,'Step 2 - Order Planner'!$C$44:$C$72,$K36) -> 0 | I36: =IF(OR($C$16=0,$C$17=0),"Please Enter Acreage",IF(C36="Greens",H36/$C$17,IF(C36="Fairways",H36/$C$16,0))) -> 0 | K36: 59013833
B37: 4 x 11.4 oz | D37: =SUMIFS('Step 2 - Order Planner'!J$26:J$39,'Step 2 - Order Planner'!$C$26:$C$39,$K37)+SUMIFS('Step 2 - Order Planner'!J$44:J$72,'Step 2 - Order Planner'!$C$44:$C$72,$K37) -> 0 | E37: 0 | F37: =SUMIFS('Step 2 - Order Planner'!K$26:K$39,'Step 2 - Order Planner'!$C$26:$C$39,$K37)+SUMIFS('Step 2 - Order Planner'!K$44:K$72,'Step 2 - Order Planner'!$C$44:$C$72,$K37) -> 0 | G37: 0 | H37: =SUMIFS('Step 2 - Order Planner'!L$26:L$39,'Step 2 - Order Planner'!$C$26:$C$39,$K37)+SUMIFS('Step 2 - Order Planner'!L$44:L$72,'Step 2 - Order Planner'!$C$44:$C$72,$K37) -> 0 | I37: 0 | K37: 59014120
A40: BASF has developed this calculator using formulas that approximate the rebate amount under the 2020 Early Order Program. The calculator is being shared with you for information purposes only and for your private use in preparing your own calculations. While every effort has been made to ensure the accuracy and reliability of the information and formulas, no guarantee is given nor responsibility taken by BASF for the accuracy of the calculator or the applicability to your particular circumstances. BASF PROVIDES THIS CALCULATOR AND ANY RESULT THEREFROM AS IS WITH ALL FAULTS AND WITH NO WARRANTY WHATSOEVER, EITHER EXPRESS OR IMPLIED, INCLUDING ANY WARRANTIES OF MERCHANTABILITY AND FITNESS FOR PARTICULAR PURPOSE. YOU ASSUME ANY AND ALL RISKS IN USING THE CALCULATOR AND RELYING ON THE INFORMATION CONTAINED HEREIN. IN NO CIRCUMSTANCES SHALL BASF BE LIABLE FOR ANY DAMAGES WHATSOEVER, INCLUDING BUT NOT LIMITED TO LOSS OF PROFIT, LOSS OF BUSINESS, LOSS OF SAVINGS, OR CONSEQUENTIAL DAMAGES, EVEN IF BASF HAS BEEN NOTIFIED AS SUCH.

Sheet Step 3 - Review Order
A11: BASF 2026 EOP ORDER SUMMARY
A13: =NOW() -> 2025-07-15T11:22:01 | D13: Rebate Summary
A14: Order For | B14: Order Prepared By | D14: Total Purchase | F14: ='Step 2 - Order Planner'!H21 -> 0
A15: <Enter Customer Name> | B15: <Enter Name> | D15: DYOP Rebate Attained | F15: ='Step 2 - Order Planner'!B20 -> 0
A16: <Enter Business Name> | B16: <Enter Business Name> | D16: Across-The-Course Rebate | F16: ='Step 2 - Order Planner'!B21 -> 0
A17: <City, ST Zip Code> | B17: <City, ST Zip Code> | D17: ='Step 2 - Order Planner'!A22 -> Aramax™ SC Intrinsic® Kicker Rebate | F17: ='Step 2 - Order Planner'!B22 -> 0
A18: <Phone> | B18: <Phone> | D18: Aramax™ SC Intrinsic® % Attained | F18: ='Step 2 - Order Planner'!C22 -> 0
A19: <email address> | B19: <email address> | D19: Tower® Herbicide Fairway Kicker Rebate | F19: ='Step 2 - Order Planner'!B23 -> 0
D20: Tower® Herbicide Fairway Kicker % Attained | F20: ='Step 2 - Order Planner'!C23 -> 0
D21: Total EOP Rebate | F21: ='Step 2 - Order Planner'!H23 -> 0
A23: Your Order Detail
A25: Product | B25: Package | C25: Article No. | D25: Redemption Value | E25: Quantity | F25: Total
A26: =VLOOKUP($C26,'Article Reference'!$A$3:$D$53,2,FALSE) -> Aramax™ Intrinsic® brand Fungicide | B26: =VLOOKUP($C26,'Article Reference'!$A$3:$D$53,3,FALSE) -> 2 x 2.5 gal | C26: 59026671 | D26: =VLOOKUP($C26,'Article Reference'!$A$3:$D$53,4,FALSE) -> 5215 | E26: =VLOOKUP(C26,'Step 2 - Order Planner'!$C$26:$H$73,4,FALSE)+VLOOKUP(C26,'Step 2 - Order Planner'!$C$26:$H$73,6,FALSE) -> 0 | F26: =E26*D26 -> 0
A27: =VLOOKUP($C27,'Article Reference'!$A$3:$D$53,2,FALSE) -> Aramax™ Intrinsic brand fungicide | B27: =VLOOKUP($C27,'Article Reference'!$A$3:$D$53,3,FALSE) -> 4 x 43.5 fl oz | C27: 59032979 | D27: =VLOOKUP($C27,'Article Reference'!$A$3:$D$53,4,FALSE) -> 1479 | E27: =VLOOKUP(C27,'Step 2 - Order Planner'!$C$26:$H$73,4,FALSE)+VLOOKUP(C27,'Step 2 - Order Planner'!$C$26:$H$73,6,FALSE) -> 0 | F27: =E27*D27 -> 0
A28: =VLOOKUP($C28,'Article Reference'!$A$3:$D$53,2,FALSE) -> Emerald® fungicide | B28: =VLOOKUP($C28,'Article Reference'!$A$3:$D$53,3,FALSE) -> 10 x 0.49 lb | C28: 59021463 | D28: =VLOOKUP($C28,'Article Reference'!$A$3:$D$53,4,FALSE) -> 1239.7 | E28: =VLOOKUP(C28,'Step 2 - Order Planner'!$C$26:$H$73,4,FALSE)+VLOOKUP(C28,'Step 2 - Order Planner'!$C$26:$H$73,6,FALSE) -> 0 | F28: 0
A29: =VLOOKUP($C29,'Article Reference'!$A$3:$D$53,2,FALSE) -> Encartis® fungicide | B29: =VLOOKUP($C29,'Article Reference'!$A$3:$D$53,3,FALSE) -> 2 x 2.5 gal | C29: 59014003 | D29: =VLOOKUP($C29,'Article Reference'!$A$3:$D$53,4,FALSE) -> 680 | E29: =VLOOKUP(C29,'Step 2 - Order Planner'!$C$26:$H$73,4,FALSE)+VLOOKUP(C29,'Step 2 - Order Planner'!$C$26:$H$73,6,FALSE) -> 0 | F29: 0
A30: =VLOOKUP($C30,'Article Reference'!$A$3:$D$53,2,FALSE) -> Honor® Intrinsic® brand fungicide | B30: =VLOOKUP($C30,'Article Reference'!$A$3:$D$53,3,FALSE) -> 6 x 3 lb | C30: 59012350 | D30: =VLOOKUP($C30,'Article Reference'!$A$3:$D$53,4,FALSE) -> 3528 | E30: =VLOOKUP(C30,'Step 2 - Order Planner'!$C$26:$H$73,4,FALSE)+VLOOKUP(C30,'Step 2 - Order Planner'!$C$26:$H$73,6,FALSE) -> 0 | F30: 0
A31: =VLOOKUP($C31,'Article Reference'!$A$3:$D$53,2,FALSE) -> Honor® Intrinsic® brand fungicide | B31: =VLOOKUP($C31,'Article Reference'!$A$3:$D$53,3,FALSE) -> 1 x 36 lb | C31: 59012885 | D31: =VLOOKUP($C31,'Article Reference'!$A$3:$D$53,4,FALSE) -> 5112 | E31: =VLOOKUP(C31,'Step 2 - Order Planner'!$C$26:$H$73,4,FALSE)+VLOOKUP(C31,'Step 2 - Order Planner'!$C$26:$H$73,6,FALSE) -> 0 | F31: 0
A32: =VLOOKUP($C32,'Article Reference'!$A$3:$D$53,2,FALSE) -> Insignia® SC Intrinsic® brand fungicide | B32: =VLOOKUP($C32,'Article Reference'!$A$3:$D$53,3,FALSE) -> 4 x 30.5 fl oz | C32: 59028038 | D32: =VLOOKUP($C32,'Article Reference'!$A$3:$D$53,4,FALSE) -> 2303.36 | E32: =VLOOKUP(C32,'Step 2 - Order Planner'!$C$26:$H$73,4,FALSE)+VLOOKUP(C32,'Step 2 - Order Planner'!$C$26:$H$73,6,FALSE) -> 0 | F32: 0
A33: =VLOOKUP($C33,'Article Reference'!$A$3:$D$53,2,FALSE) -> Insignia® SC Intrinsic® brand fungicide | B33: =VLOOKUP($C33,'Article Reference'!$A$3:$D$53,3,FALSE) -> 2 x 2.5 gal | C33: 59028040 | D33: =VLOOKUP($C33,'Article Reference'!$A$3:$D$53,4,FALSE) -> 7522.5 | E33: =VLOOKUP(C33,'Step 2 - Order Planner'!$C$26:$H$73,4,FALSE)+VLOOKUP(C33,'Step 2 - Order Planner'!$C$26:$H$73,6,FALSE) -> 0 | F33: 0
A34: =VLOOKUP($C34,'Article Reference'!$A$3:$D$53,2,FALSE) -> Lexicon® Intrinsic® brand fungicide | B34: =VLOOKUP($C34,'Article Reference'!$A$3:$D$53,3,FALSE) -> 4 x 21 oz | C34: 59027998 | D34: =VLOOKUP($C34,'Article Reference'!$A$3:$D$53,4,FALSE) -> 2520 | E34: =VLOOKUP(C34,'Step 2 - Order Planner'!$C$26:$H$73,4,FALSE)+VLOOKUP(C34,'Step 2 - Order Planner'!$C$26:$H$73,6,FALSE) -> 0 | F34: 0
A35: =VLOOKUP($C35,'Article Reference'!$A$3:$D$53,2,FALSE) -> Maxtima® fungicide | B35: =VLOOKUP($C35,'Article Reference'!$A$3:$D$53,3,FALSE) -> 4 x 26 oz | C35: 59018087 | D35: =VLOOKUP($C35,'Article Reference'!$A$3:$D$53,4,FALSE) -> 956.8 | E35: =VLOOKUP(C35,'Step 2 - Order Planner'!$C$26:$H$73,4,FALSE)+VLOOKUP(C35,'Step 2 - Order Planner'!$C$26:$H$73,6,FALSE) -> 0 | F35: 0
A36: =VLOOKUP($C36,'Article Reference'!$A$3:$D$53,2,FALSE) -> Maxtima® fungicide | B36: =VLOOKUP($C36,'Article Reference'!$A$3:$D$53,3,FALSE) -> 2 x 2.5 gal | C36: 59018071 | D36: =VLOOKUP($C36,'Article Reference'!$A$3:$D$53,4,FALSE) -> 4715 | E36: =VLOOKUP(C36,'Step 2 - Order Planner'!$C$26:$H$73,4,FALSE)+VLOOKUP(C36,'Step 2 - Order Planner'!$C$26:$H$73,6,FALSE) -> 0 | F36: 0
A37: =VLOOKUP($C37,'Article Reference'!$A$3:$D$53,2,FALSE) -> Navicon® Intrinsic® brand fungicide | B37: =VLOOKUP($C37,'Article Reference'!$A$3:$D$53,3,FALSE) -> 4 x 37 fl oz | C37: 59018094 | D37: =VLOOKUP($C37,'Article Reference'!$A$3:$D$53,4,FALSE) -> 2308.8 | E37: =VLOOKUP(C37,'Step 2 - Order Planner'!$C$26:$H$73,4,FALSE)+VLOOKUP(C37,'Step 2 - Order Planner'!$C$26:$H$73,6,FALSE) -> 0 | F37: 0
A38: =VLOOKUP($C38,'Article Reference'!$A$3:$D$53,2,FALSE) -> Navicon® Intrinsic® brand fungicide | B38: =VLOOKUP($C38,'Article Reference'!$A$3:$D$53,3,FALSE) -> 2 x 2.5 gal | C38: 59018095 | D38: =VLOOKUP($C38,'Article Reference'!$A$3:$D$53,4,FALSE) -> 7320 | E38: =VLOOKUP(C38,'Step 2 - Order Planner'!$C$26:$H$73,4,FALSE)+VLOOKUP(C38,'Step 2 - Order Planner'!$C$26:$H$73,6,FALSE) -> 0 | F38: 0
A39: =VLOOKUP($C39,'Article Reference'!$A$3:$D$53,2,FALSE) -> Xzemplar® fungicide | B39: =VLOOKUP($C39,'Article Reference'!$A$3:$D$53,3,FALSE) -> 2 x 114 oz | C39: 59013833 | D39: =VLOOKUP($C39,'Article Reference'!$A$3:$D$53,4,FALSE) -> 3602.4 | E39: =VLOOKUP(C39,'Step 2 - Order Planner'!$C$26:$H$73,4,FALSE)+VLOOKUP(C39,'Step 2 - Order Planner'!$C$26:$H$73,6,FALSE) -> 0 | F39: 0
A40: =VLOOKUP($C40,'Article Reference'!$A$3:$D$53,2,FALSE) -> Xzemplar® fungicide | B40: =VLOOKUP($C40,'Article Reference'!$A$3:$D$53,3,FALSE) -> 4 x 11.4 oz | C40: 59014120 | D40: =VLOOKUP($C40,'Article Reference'!$A$3:$D$53,4,FALSE) -> 861.84 | E40: =VLOOKUP(C40,'Step 2 - Order Planner'!$C$26:$H$73,4,FALSE)+VLOOKUP(C40,'Step 2 - Order Planner'!$C$26:$H$73,6,FALSE) -> 0 | F40: 0
A41: Design-Your-Own-Program Rebate Purchases Sub-Total | F41: ='Step 2 - Order Planner'!H17 -> 0
A42: =VLOOKUP($C42,'Article Reference'!$A$3:$D$53,2,FALSE) -> Admiral® lake colorant | B42: =VLOOKUP($C42,'Article Reference'!$A$3:$D$53,3,FALSE) -> 4 x 1 gal | C42: 59014151 | D42: =VLOOKUP($C42,'Article Reference'!$A$3:$D$53,4,FALSE) -> 280 | E42: =VLOOKUP(C42,'Step 2 - Order Planner'!$C$26:$H$73,4,FALSE)+VLOOKUP(C42,'Step 2 - Order Planner'!$C$26:$H$73,6,FALSE) -> 0 | F42: 0
A43: =VLOOKUP($C43,'Article Reference'!$A$3:$D$53,2,FALSE) -> Amdro Pro Fire Ant Bait | B43: =VLOOKUP($C43,'Article Reference'!$A$3:$D$53,3,FALSE) -> 1 x 25lbs | C43: 59021451 | D43: =VLOOKUP($C43,'Article Reference'!$A$3:$D$53,4,FALSE) -> 625 | E43: =VLOOKUP(C43,'Step 2 - Order Planner'!$C$26:$H$73,4,FALSE)+VLOOKUP(C43,'Step 2 - Order Planner'!$C$26:$H$73,6,FALSE) -> 0 | F43: 0
A44: =VLOOKUP($C44,'Article Reference'!$A$3:$D$53,2,FALSE) -> Black Onyx lake & pond colorant | B44: =VLOOKUP($C44,'Article Reference'!$A$3:$D$53,3,FALSE) -> 4 x 1 gal | C44: 59013424 | D44: =VLOOKUP($C44,'Article Reference'!$A$3:$D$53,4,FALSE) -> 480 | E44: =VLOOKUP(C44,'Step 2 - Order Planner'!$C$26:$H$73,4,FALSE)+VLOOKUP(C44,'Step 2 - Order Planner'!$C$26:$H$73,6,FALSE) -> 0 | F44: 0
A45: =VLOOKUP($C45,'Article Reference'!$A$3:$D$53,2,FALSE) -> Drive® XLR8 herbicide | B45: =VLOOKUP($C45,'Article Reference'!$A$3:$D$53,3,FALSE) -> 4 x 0.5 gal | C45: 59011404 | D45: =VLOOKUP($C45,'Article Reference'!$A$3:$D$53,4,FALSE) -> 228.13 | E45: =VLOOKUP(C45,'Step 2 - Order Planner'!$C$26:$H$73,4,FALSE)+VLOOKUP(C45,'Step 2 - Order Planner'!$C$26:$H$73,6,FALSE) -> 0 | F45: 0
A46: =VLOOKUP($C46,'Article Reference'!$A$3:$D$53,2,FALSE) -> Drive® XLR8 herbicide | B46: =VLOOKUP($C46,'Article Reference'!$A$3:$D$53,3,FALSE) -> 2 x 2.5 gal | C46: 59018043 | D46: =VLOOKUP($C46,'Article Reference'!$A$3:$D$53,4,FALSE) -> 529.69 | E46: =VLOOKUP(C46,'Step 2 - Order Planner'!$C$26:$H$73,4,FALSE)+VLOOKUP(C46,'Step 2 - Order Planner'!$C$26:$H$73,6,FALSE) -> 0 | F46: =E46*D46 -> 0
A47: =VLOOKUP($C47,'Article Reference'!$A$3:$D$53,2,FALSE) -> FreeHand® 1.75G CA herbicide | B47: =VLOOKUP($C47,'Article Reference'!$A$3:$D$53,3,FALSE) -> 1 x 50 lb | C47: 59013674 | D47: =VLOOKUP($C47,'Article Reference'!$A$3:$D$53,4,FALSE) -> 116 | E47: =VLOOKUP(C47,'Step 2 - Order Planner'!$C$26:$H$73,4,FALSE)+VLOOKUP(C47,'Step 2 - Order Planner'!$C$26:$H$73,6,FALSE) -> 0 | F47: 0
A48: =VLOOKUP($C48,'Article Reference'!$A$3:$D$53,2,FALSE) -> Green Lawnger® colorant | B48: =VLOOKUP($C48,'Article Reference'!$A$3:$D$53,3,FALSE) -> 2 x 2.5 gal | C48: 59013430 | D48: =VLOOKUP($C48,'Article Reference'!$A$3:$D$53,4,FALSE) -> 418.75 | E48: =VLOOKUP(C48,'Step 2 - Order Planner'!$C$26:$H$73,4,FALSE)+VLOOKUP(C48,'Step 2 - Order Planner'!$C$26:$H$73,6,FALSE) -> 0 | F48: 0
A49: =VLOOKUP($C49,'Article Reference'!$A$3:$D$53,2,FALSE) -> Green Lawnger® Transition HC colorant | B49: =VLOOKUP($C49,'Article Reference'!$A$3:$D$53,3,FALSE) -> 4 x 1 gal | C49: 59013410 | D49: =VLOOKUP($C49,'Article Reference'!$A$3:$D$53,4,FALSE) -> 875 | E49: =VLOOKUP(C49,'Step 2 - Order Planner'!$C$26:$H$73,4,FALSE)+VLOOKUP(C49,'Step 2 - Order Planner'!$C$26:$H$73,6,FALSE) -> 0 | F49: 0
A50: =VLOOKUP($C50,'Article Reference'!$A$3:$D$53,2,FALSE) -> Green Lawnger® Vision Pro colorant | B50: =VLOOKUP($C50,'Article Reference'!$A$3:$D$53,3,FALSE) -> 4 x 1 gal | C50: 59013342 | D50: =VLOOKUP($C50,'Article Reference'!$A$3:$D$53,4,FALSE) -> 790 | E50: =VLOOKUP(C50,'Step 2 - Order Planner'!$C$26:$H$73,4,FALSE)+VLOOKUP(C50,'Step 2 - Order Planner'!$C$26:$H$73,6,FALSE) -> 0 | F50: 0
A51: =VLOOKUP($C51,'Article Reference'!$A$3:$D$53,2,FALSE) -> Pageant® Intrinsic® brand Fungicide | B51: =VLOOKUP($C51,'Article Reference'!$A$3:$D$53,3,FALSE) -> 4 x 1 lb | C51: 59012349 | D51: =VLOOKUP($C51,'Article Reference'!$A$3:$D$53,4,FALSE) -> 460 | E51: =VLOOKUP(C51,'Step 2 - Order Planner'!$C$26:$H$73,4,FALSE)+VLOOKUP(C51,'Step 2 - Order Planner'!$C$26:$H$73,6,FALSE) -> 0 | F51: 0
A52: =VLOOKUP($C52,'Article Reference'!$A$3:$D$53,2,FALSE) -> Pendulum® 2G herbicide | B52: =VLOOKUP($C52,'Article Reference'!$A$3:$D$53,3,FALSE) -> 20 lbs bag | C52: 59017972 | D52: =VLOOKUP($C52,'Article Reference'!$A$3:$D$53,4,FALSE) -> 52.5 | E52: =VLOOKUP(C52,'Step 2 - Order Planner'!$C$26:$H$73,4,FALSE)+VLOOKUP(C52,'Step 2 - Order Planner'!$C$26:$H$73,6,FALSE) -> 0 | F52: 0
A53: =VLOOKUP($C53,'Article Reference'!$A$3:$D$53,2,FALSE) -> Pendulum® 2G herbicide | B53: =VLOOKUP($C53,'Article Reference'!$A$3:$D$53,3,FALSE) -> 40 lbs bag | C53: 59015072 | D53: =VLOOKUP($C53,'Article Reference'!$A$3:$D$53,4,FALSE) -> 92 | E53: =VLOOKUP(C53,'Step 2 - Order Planner'!$C$26:$H$73,4,FALSE)+VLOOKUP(C53,'Step 2 - Order Planner'!$C$26:$H$73,6,FALSE) -> 0 | F53: =E53*D53 -> 0
A54: =VLOOKUP($C54,'Article Reference'!$A$3:$D$53,2,FALSE) -> Pendulum® AquaCap herbicide | B54: =VLOOKUP($C54,'Article Reference'!$A$3:$D$53,3,FALSE) -> 2 x 2.5 gal | C54: 59049276 | D54: =VLOOKUP($C54,'Article Reference'!$A$3:$D$53,4,FALSE) -> 290.63 | E54: =VLOOKUP(C54,'Step 2 - Order Planner'!$C$26:$H$73,4,FALSE)+VLOOKUP(C54,'Step 2 - Order Planner'!$C$26:$H$73,6,FALSE) -> 0 | F54: 0
A55: =VLOOKUP($C55,'Article Reference'!$A$3:$D$53,2,FALSE) -> Pendulum® AquaCap herbicide | B55: =VLOOKUP($C55,'Article Reference'!$A$3:$D$53,3,FALSE) -> 1 x 15 gal | C55: 59011279 | D55: =VLOOKUP($C55,'Article Reference'!$A$3:$D$53,4,FALSE) -> 1035 | E55: =VLOOKUP(C55,'Step 2 - Order Planner'!$C$26:$H$73,4,FALSE)+VLOOKUP(C55,'Step 2 - Order Planner'!$C$26:$H$73,6,FALSE) -> 0 | F55: =E55*D55 -> 0
A56: =VLOOKUP($C56,'Article Reference'!$A$3:$D$53,2,FALSE) -> Pillar® G Intrinsic® brand fungicide | B56: =VLOOKUP($C56,'Article Reference'!$A$3:$D$53,3,FALSE) -> 15 lbs bag | C56: 59017959 | D56: =VLOOKUP($C56,'Article Reference'!$A$3:$D$53,4,FALSE) -> 60.75 | E56: =VLOOKUP(C56,'Step 2 - Order Planner'!$C$26:$H$73,4,FALSE)+VLOOKUP(C56,'Step 2 - Order Planner'!$C$26:$H$73,6,FALSE) -> 0 | F56: 0
A57: =VLOOKUP($C57,'Article Reference'!$A$3:$D$53,2,FALSE) -> Pillar® G Intrinsic® brand fungicide | B57: =VLOOKUP($C57,'Article Reference'!$A$3:$D$53,3,FALSE) -> 30 lbs bag | C57: 59012784 | D57: =VLOOKUP($C57,'Article Reference'!$A$3:$D$53,4,FALSE) -> 112.5 | E57: =VLOOKUP(C57,'Step 2 - Order Planner'!$C$26:$H$73,4,FALSE)+VLOOKUP(C57,'Step 2 - Order Planner'!$C$26:$H$73,6,FALSE) -> 0 | F57: 0
A58: =VLOOKUP($C58,'Article Reference'!$A$3:$D$53,2,FALSE) -> Pylex® herbicide | B58: =VLOOKUP($C58,'Article Reference'!$A$3:$D$53,3,FALSE) -> 4 x 4 oz | C58: 59018005 | D58: =VLOOKUP($C58,'Article Reference'!$A$3:$D$53,4,FALSE) -> 1552 | E58: =VLOOKUP(C58,'Step 2 - Order Planner'!$C$26:$H$73,4,FALSE)+VLOOKUP(C58,'Step 2 - Order Planner'!$C$26:$H$73,6,FALSE) -> 0 | F58: 0
A59: =VLOOKUP($C59,'Article Reference'!$A$3:$D$53,2,FALSE) -> Siesta® Fire Ant Bait | B59: =VLOOKUP($C59,'Article Reference'!$A$3:$D$53,3,FALSE) -> 15 lbs | C59: 59011057 | D59: =VLOOKUP($C59,'Article Reference'!$A$3:$D$53,4,FALSE) -> 318.75 | E59: =VLOOKUP(C59,'Step 2 - Order Planner'!$C$26:$H$73,4,FALSE)+VLOOKUP(C59,'Step 2 - Order Planner'!$C$26:$H$73,6,FALSE) -> 0 | F59: 0
A60: =VLOOKUP($C60,'Article Reference'!$A$3:$D$53,2,FALSE) -> Sultan® miticide | B60: =VLOOKUP($C60,'Article Reference'!$A$3:$D$53,3,FALSE) -> 4 x 0.125 gal | C60: 59023753 | D60: =VLOOKUP($C60,'Article Reference'!$A$3:$D$53,4,FALSE) -> 740 | E60: =VLOOKUP(C60,'Step 2 - Order Planner'!$C$26:$H$73,4,FALSE)+VLOOKUP(C60,'Step 2 - Order Planner'!$C$26:$H$73,6,FALSE) -> 0 | F60: 0
A61: =VLOOKUP($C61,'Article Reference'!$A$3:$D$53,2,FALSE) -> Tower® herbicide | B61: =VLOOKUP($C61,'Article Reference'!$A$3:$D$53,3,FALSE) -> 2 x 2.5 gal | C61: 59014247 | D61: =VLOOKUP($C61,'Article Reference'!$A$3:$D$53,4,FALSE) -> 2100 | E61: =VLOOKUP(C61,'Step 2 - Order Planner'!$C$26:$H$73,4,FALSE)+VLOOKUP(C61,'Step 2 - Order Planner'!$C$26:$H$73,6,FALSE) -> 0 | F61: 0
A62: =VLOOKUP($C62,'Article Reference'!$A$3:$D$53,2,FALSE) -> Turf Mark spray indicator - blue | B62: =VLOOKUP($C62,'Article Reference'!$A$3:$D$53,3,FALSE) -> 12 x 0.25 gal | C62: 59013723 | D62: =VLOOKUP($C62,'Article Reference'!$A$3:$D$53,4,FALSE) -> 273.75 | E62: =VLOOKUP(C62,'Step 2 - Order Planner'!$C$26:$H$73,4,FALSE)+VLOOKUP(C62,'Step 2 - Order Planner'!$C$26:$H$73,6,FALSE) -> 0 | F62: 0
A63: =VLOOKUP($C63,'Article Reference'!$A$3:$D$53,2,FALSE) -> Turf Mark spray indicator - blue | B63: =VLOOKUP($C63,'Article Reference'!$A$3:$D$53,3,FALSE) -> 1 x 30 gal | C63: 59013314 | D63: =VLOOKUP($C63,'Article Reference'!$A$3:$D$53,4,FALSE) -> 1717.5 | E63: =VLOOKUP(C63,'Step 2 - Order Planner'!$C$26:$H$73,4,FALSE)+VLOOKUP(C63,'Step 2 - Order Planner'!$C$26:$H$73,6,FALSE) -> 0 | F63: 0
A64: =VLOOKUP($C64,'Article Reference'!$A$3:$D$53,2,FALSE) -> Turf Mark spray indicator - blue | B64: =VLOOKUP($C64,'Article Reference'!$A$3:$D$53,3,FALSE) -> 2 x 2.5 gal | C64: 59030213 | D64: =VLOOKUP($C64,'Article Reference'!$A$3:$D$53,4,FALSE) -> 305.63 | E64: =VLOOKUP(C64,'Step 2 - Order Planner'!$C$26:$H$73,4,FALSE)+VLOOKUP(C64,'Step 2 - Order Planner'!$C$26:$H$73,6,FALSE) -> 0 | F64: =E64*D64 -> 0
A65: =VLOOKUP($C65,'Article Reference'!$A$3:$D$53,2,FALSE) -> Turf Mark spray indicator - blue | B65: =VLOOKUP($C65,'Article Reference'!$A$3:$D$53,3,FALSE) -> 4 x 1 gal | C65: 59013420 | D65: =VLOOKUP($C65,'Article Reference'!$A$3:$D$53,4,FALSE) -> 262.5 | E65: =VLOOKUP(C65,'Step 2 - Order Planner'!$C$26:$H$73,4,FALSE)+VLOOKUP(C65,'Step 2 - Order Planner'!$C$26:$H$73,6,FALSE) -> 0 | F65: =E65*D65 -> 0
A66: =VLOOKUP($C66,'Article Reference'!$A$3:$D$53,2,FALSE) -> Ventigra® insecticide | B66: =VLOOKUP($C66,'Article Reference'!$A$3:$D$53,3,FALSE) -> 4 x 20 oz | C66: 59014680 | D66: =VLOOKUP($C66,'Article Reference'!$A$3:$D$53,4,FALSE) -> 1360 | E66: =VLOOKUP(C66,'Step 2 - Order Planner'!$C$26:$H$73,4,FALSE)+VLOOKUP(C66,'Step 2 - Order Planner'!$C$26:$H$73,6,FALSE) -> 0 | F66: =E66*D66 -> 0
A67: Across-the-Course-Solutions Rebate Purchase Sub-Total | F67: ='Step 2 - Order Planner'!H19 -> 0
A69: BASF has developed this calculator using formulas that approximate the rebate amount under the 2026 Early Order Program. The calculator is being shared with you for information purposes only and for your private use in preparing your own calculations. While every effort has been made to ensure the accuracy and reliability of the information and formulas, no guarantee is given nor responsibility taken by BASF for the accuracy of the calculator or the applicability to your particular circumstances. BASF PROVIDES THIS CALCULATOR AND ANY RESULT THEREFROM AS IS WITH ALL FAULTS AND WITH NO WARRANTY WHATSOEVER, EITHER EXPRESS OR IMPLIED, INCLUDING ANY WARRANTIES OF MERCHANTABILITY AND FITNESS FOR PARTICULAR PURPOSE. YOU ASSUME ANY AND ALL RISKS IN USING THE CALCULATOR AND RELYING ON THE INFORMATION CONTAINED HEREIN. IN NO CIRCUMSTANCES SHALL BASF BE LIABLE FOR ANY DAMAGES WHATSOEVER, INCLUDING BUT NOT LIMITED TO LOSS OF PROFIT, LOSS OF BUSINESS, LOSS OF SAVINGS, OR CONSEQUENTIAL DAMAGES, EVEN IF BASF HAS BEEN NOTIFIED AS SUCH.

Sheet Range Reference (hidden)
A1: Standard | C1: Oct | D1: Nov-Dec | L1: Article# | M1: Article | N1: Package | O1: Oct Order | P1: Nov-Dec Order | Q1: Oct Count | R1: Nov-Dec Count | S1: Total
A2: Low | B2: High | C2: Discount | D2: Discount | E2: Oct Applied | G2: Rebate Applied | L2: 59026671 | M2: =VLOOKUP($L2,'Article Reference'!$A$3:$C$17,2,FALSE) -> Aramax™ Intrinsic® brand Fungicide | N2: =VLOOKUP($L2,'Article Reference'!$A$3:$C$17,3,FALSE) -> 2 x 2.5 gal | O2: =VLOOKUP(L2,'Step 2 - Order Planner'!$C$26:$F$40,4,FALSE) -> 0 | P2: =VLOOKUP(L2,'Step 2 - Order Planner'!$C$26:$H$40,6,FALSE) -> 0 | Q2: =IF(O2+O3>0,1,0) -> 0 | R2: =IF(P2+P3>0,1,0) -> 0 | S2: =IF(OR(Q2=1,R2=1),1,0) -> 0
A3: 3000 | B3: =A4-1 -> 7999 | C3: 0.04 | D3: 0.04 | E3: =IF(AND(('Step 2 - Order Planner'!$H$19+$E$7)>=3000,'Step 2 - Order Planner'!$H$19+$E$7>=$A3,'Step 2 - Order Planner'!$H$19+$E$7<=$B3),C3) -> FALSE | G3: =SUM(E3:F3) -> 0 | L3: 59032979 | M3: =VLOOKUP($L3,'Article Reference'!$A$3:$C$17,2,FALSE) -> Aramax™ Intrinsic brand fungicide | N3: =VLOOKUP($L3,'Article Reference'!$A$3:$C$17,3,FALSE) -> 4 x 43.5 fl oz
A4: 8000 | B4: =A5-1 -> 19999 | C4: 0.06 | D4: 0.06 | E4: =IF(AND(('Step 2 - Order Planner'!$H$19+$E$7)>=3000,'Step 2 - Order Planner'!$H$19+$E$7>=$A4,'Step 2 - Order Planner'!$H$19+$E$7<=$B4),C4) -> FALSE | G4: =SUM(E4:F4) -> 0 | L4: 59021463 | M4: =VLOOKUP($L4,'Article Reference'!$A$5:$C$17,2,FALSE) -> Emerald® fungicide | N4: =VLOOKUP($L4,'Article Reference'!$A$5:$C$17,3,FALSE) -> 10 x 0.49 lb | O4: =VLOOKUP(L4,'Step 2 - Order Planner'!$C$26:$F$40,4,FALSE) -> 0 | P4: =VLOOKUP(L4,'Step 2 - Order Planner'!$C$26:$H$40,6,FALSE) -> 0 | Q4: =IF(O4>0,1,0) -> 0 | R4: 0 | S4: =IF(OR(Q4=1,R4=1),1,0) -> 0
A5: 20000 | B5: 1000000 | C5: 0.12 | D5: 0.12 | E5: =IF(AND(('Step 2 - Order Planner'!$H$19+$E$7)>=3000,'Step 2 - Order Planner'!$H$19+$E$7>=$A5,'Step 2 - Order Planner'!$H$19+$E$7<=$B5),C5) -> FALSE | G5: =SUM(E5:F5) -> 0 | L5: 59014003 | M5: =VLOOKUP($L5,'Article Reference'!$A$5:$C$17,2,FALSE) -> Encartis® fungicide | N5: =VLOOKUP($L5,'Article Reference'!$A$5:$C$17,3,FALSE) -> 2 x 2.5 gal | O5: =VLOOKUP(L5,'Step 2 - Order Planner'!$C$26:$F$40,4,FALSE) -> 0 | P5: =VLOOKUP(L5,'Step 2 - Order Planner'!$C$26:$H$40,6,FALSE) -> 0 | Q5: 0 | R5: 0 | S5: =IF(OR(Q5=1,R5=1),1,0) -> 0
C6: DISCOUNT | E6: =SUM(E3:E5) -> 0 | G6: =SUM(E6:F6) -> 0 | L6: 59012350 | M6: =VLOOKUP($L6,'Article Reference'!$A$5:$C$17,2,FALSE) -> Honor® Intrinsic® brand fungicide | N6: =VLOOKUP($L6,'Article Reference'!$A$5:$C$17,3,FALSE) -> 6 x 3 lb | O6: =VLOOKUP(L6,'Step 2 - Order Planner'!$C$26:$F$40,4,FALSE) -> 0 | P6: =VLOOKUP(L6,'Step 2 - Order Planner'!$C$26:$H$40,6,FALSE) -> 0 | Q6: =IF(O6+O7>0,1,0) -> 0 | R6: =IF(P6+P7>0,1,0) -> 0 | S6: =IF(OR(Q6=1,R6=1),1,0) -> 0
E7: 0 | L7: 59012885 | M7: =VLOOKUP($L7,'Article Reference'!$A$5:$C$17,2,FALSE) -> Honor® Intrinsic® brand fungicide | N7: =VLOOKUP($L7,'Article Reference'!$A$5:$C$17,3,FALSE) -> 1 x 36 lb | O7: =VLOOKUP(L7,'Step 2 - Order Planner'!$C$26:$F$40,4,FALSE) -> 0 | P7: =VLOOKUP(L7,'Step 2 - Order Planner'!$C$26:$H$40,6,FALSE) -> 0
L8: 59028038 | M8: =VLOOKUP($L8,'Article Reference'!$A$5:$C$17,2,FALSE) -> Insignia® SC Intrinsic® brand fungicide | N8: =VLOOKUP($L8,'Article Reference'!$A$5:$C$17,3,FALSE) -> 4 x 30.5 fl oz | O8: =VLOOKUP(L8,'Step 2 - Order Planner'!$C$26:$F$40,4,FALSE) -> 0 | P8: =VLOOKUP(L8,'Step 2 - Order Planner'!$C$26:$H$40,6,FALSE) -> 0 | Q8: =IF(O8+O9>0,1,0) -> 0 | R8: =IF(P8+P9>0,1,0) -> 0 | S8: =IF(OR(Q8=1,R8=1),1,0) -> 0
A9: DYOP | C9: Oct | D9: Nov-Dec | L9: 59028040 | M9: =VLOOKUP($L9,'Article Reference'!$A$5:$C$17,2,FALSE) -> Insignia® SC Intrinsic® brand fungicide | N9: =VLOOKUP($L9,'Article Reference'!$A$5:$C$17,3,FALSE) -> 2 x 2.5 gal | O9: =VLOOKUP(L9,'Step 2 - Order Planner'!$C$26:$F$40,4,FALSE) -> 0 | P9: =VLOOKUP(L9,'Step 2 - Order Planner'!$C$26:$H$40,6,FALSE) -> 0
A10: Low | B10: High | C10: Discount | D10: Discount | E10: Oct Applied | F10: Nov-Dec Applied | G10: Rebate Applied | H10: ='Step 2 - Order Planner'!H17:I17 -> 0 | L10: 59027998 | M10: =VLOOKUP($L10,'Article Reference'!$A$5:$C$17,2,FALSE) -> Lexicon® Intrinsic® brand fungicide | N10: =VLOOKUP($L10,'Article Reference'!$A$5:$C$17,3,FALSE) -> 4 x 21 oz | O10: =VLOOKUP(L10,'Step 2 - Order Planner'!$C$26:$F$40,4,FALSE) -> 0 | P10: =VLOOKUP(L10,'Step 2 - Order Planner'!$C$26:$H$40,6,FALSE) -> 0 | Q10: =IF(O10>0,1,0) -> 0 | R10: =IF(P10>0,1,0) -> 0 | S10: =IF(OR(Q10=1,R10=1),1,0) -> 0
A11: 3000 | B11: =A12-1 -> 7999 | C11: 0.08 | D11: 0.03 | E11: =IF(AND(('Step 2 - Order Planner'!$G$41)>=3000,Q18>=1),C11) -> FALSE | F11: =IF(AND(('Step 2 - Order Planner'!$J$41)>=3000,S18>=1),D11) -> FALSE | G11: =IF(E11<>FALSE,E11,F11) -> FALSE | H11: =A11-H10 -> 3000 | I11: 0.08 | L11: 59018087 | M11: =VLOOKUP($L11,'Article Reference'!$A$5:$C$17,2,FALSE) -> Maxtima® fungicide | N11: =VLOOKUP($L11,'Article Reference'!$A$5:$C$17,3,FALSE) -> 4 x 26 oz | O11: =VLOOKUP(L11,'Step 2 - Order Planner'!$C$26:$F$40,4,FALSE) -> 0 | P11: =VLOOKUP(L11,'Step 2 - Order Planner'!$C$26:$H$40,6,FALSE) -> 0 | Q11: =IF(O11+O12>0,1,0) -> 0 | R11: =IF(P11+P12>0,1,0) -> 0 | S11: =IF(OR(Q11=1,R11=1),1,0) -> 0
A12: 8000 | B12: =A13-1 -> 19999 | C12: 0.14 | D12: 0.06 | E12: =IF(AND(('Step 2 - Order Planner'!$G$41)>=3000,$Q$18>=1,'Step 2 - Order Planner'!J41>=$A12,'Step 2 - Order Planner'!J41<=$B12),C12) -> FALSE | F12: =IF(AND(('Step 2 - Order Planner'!$J$41)>=3000,$S$18>=1,'Step 2 - Order Planner'!J41>=$A12,'Step 2 - Order Planner'!J41<=$B12),D12) -> FALSE | G12: =IF(E12<>FALSE,E12,F12) -> FALSE | H12: =A12-H10 -> 8000 | I12: 0.14 | L12: 59018071 | M12: =VLOOKUP($L12,'Article Reference'!$A$5:$C$17,2,FALSE) -> Maxtima® fungicide | N12: =VLOOKUP($L12,'Article Reference'!$A$5:$C$17,3,FALSE) -> 2 x 2.5 gal | O12: =VLOOKUP(L12,'Step 2 - Order Planner'!$C$26:$F$40,4,FALSE) -> 0 | P12: =VLOOKUP(L12,'Step 2 - Order Planner'!$C$26:$H$40,6,FALSE) -> 0
A13: 20000 | B13: =A14-1 -> 29999 | C13: 0.17 | D13: 0.09 | E13: =IF(AND(('Step 2 - Order Planner'!$G$41)>=3000,Q18>=1,'Step 2 - Order Planner'!J41>=$A13,'Step 2 - Order Planner'!J41<=$B13),C13) -> FALSE | F13: =IF(AND(('Step 2 - Order Planner'!$J$41)>=3000,$S$18>=1,'Step 2 - Order Planner'!J41>=$A13,'Step 2 - Order Planner'!J41<=$B13),D13) -> FALSE | G13: =IF(E13<>FALSE,E13,F13) -> FALSE | H13: =A13-H10 -> 20000 | I13: 0.17 | L13: 59018094 | M13: =VLOOKUP($L13,'Article Reference'!$A$5:$C$17,2,FALSE) -> Navicon® Intrinsic® brand fungicide | N13: =VLOOKUP($L13,'Article Reference'!$A$5:$C$17,3,FALSE) -> 4 x 37 fl oz | O13: =VLOOKUP(L13,'Step 2 - Order Planner'!$C$26:$F$40,4,FALSE) -> 0 | P13: =VLOOKUP(L13,'Step 2 - Order Planner'!$C$26:$H$40,6,FALSE) -> 0 | Q13: =IF(O13+O14>0,1,0) -> 0 | R13: =IF(P13+P14>0,1,0) -> 0 | S13: =IF(OR(Q13=1,R13=1),1,0) -> 0
A14: 30000 | B14: =A15-1 -> 39999 | C14: 0.2 | D14: 0.1 | E14: =IF(AND(('Step 2 - Order Planner'!$G$41)>=3000,Q18>=1,'Step 2 - Order Planner'!J41>=$A14,'Step 2 - Order Planner'!J41<=$B14),C14) -> FALSE | F14: =IF(AND(('Step 2 - Order Planner'!$J$41)>=3000,$S$18>=1,'Step 2 - Order Planner'!J41>=$A14,'Step 2 - Order Planner'!J41<=$B14),D14) -> FALSE | G14: =IF(E14<>FALSE,E14,F14) -> FALSE | H14: =A14-H10 -> 30000 | I14: 0.2 | L14: 59018095 | M14: =VLOOKUP($L14,'Article Reference'!$A$5:$C$17,2,FALSE) -> Navicon® Intrinsic® brand fungicide | N14: =VLOOKUP($L14,'Article Reference'!$A$5:$C$17,3,FALSE) -> 2 x 2.5 gal | O14: =VLOOKUP(L14,'Step 2 - Order Planner'!$C$26:$F$40,4,FALSE) -> 0 | P14: =VLOOKUP(L14,'Step 2 - Order Planner'!$C$26:$H$40,6,FALSE) -> 0
A15: 40000 | B15: 10000000 | C15: 0.24 | D15: 0.12 | E15: =IF(AND(('Step 2 - Order Planner'!$G$41)>=3000,Q18>=1,'Step 2 - Order Planner'!J41>=$A15,'Step 2 - Order Planner'!J41<=$B15),C15) -> FALSE | F15: =IF(AND(('Step 2 - Order Planner'!$J$41)>=3000,$S$18>=1,'Step 2 - Order Planner'!J41>=$A15,'Step 2 - Order Planner'!J41<=$B15),D15) -> FALSE | G15: =IF(E15<>FALSE,E15,F15) -> FALSE | H15: =A15-H10 -> 40000 | I15: 0.24 | L15: 59013833 | M15: =VLOOKUP($L15,'Article Reference'!$A$5:$C$17,2,FALSE) -> Xzemplar® fungicide | N15: =VLOOKUP($L15,'Article Reference'!$A$5:$C$17,3,FALSE) -> 2 x 114 oz | O15: =VLOOKUP(L15,'Step 2 - Order Planner'!$C$26:$F$40,4,FALSE) -> 0 | P15: =VLOOKUP(L15,'Step 2 - Order Planner'!$C$26:$H$40,6,FALSE) -> 0 | Q15: =IF(O15+O17>0,1,0) -> 0 | R15: =IF(P15+P17>0,1,0) -> 0 | S15: =IF(OR(Q15=1,R15=1),1,0) -> 0
C16: DISCOUNT | G16: =MAX(G11:G15) -> 0 | H16: =MIN(IF(H11:H15>0,H11:H15)) -> 3000
L17: 59014120 | M17: =VLOOKUP($L17,'Article Reference'!$A$5:$C$17,2,FALSE) -> Xzemplar® fungicide | N17: =VLOOKUP($L17,'Article Reference'!$A$5:$C$17,3,FALSE) -> 4 x 11.4 oz | O17: =VLOOKUP(L17,'Step 2 - Order Planner'!$C$26:$F$40,4,FALSE) -> 0 | P17: =VLOOKUP(L17,'Step 2 - Order Planner'!$C$26:$H$40,6,FALSE) -> 0
A18: Table B for Fungicides | Q18: =SUM(Q2:Q17) -> 0 | R18: =SUM(R2:R17) -> 0 | S18: =SUM(S2:S17) -> 0
A19: Low | B19: High | C19: Discount | D19: Discount | G19: Rebate Applied | H19: ='Step 2 - Order Planner'!H19:I19 -> 0
A20: 3000 | B20: =A21-1 -> 7999 | C20: 0.04 | D20: 0.04 | E20: =IF(AND(('Step 2 - Order Planner'!$G$41+'Step 2 - Order Planner'!$I$41+'Step 2 - Order Planner'!$G$74)>=3000,'Step 2 - Order Planner'!$G$41+'Step 2 - Order Planner'!$I$41+'Step 2 - Order Planner'!$G$74>=$A20,'Step 2 - Order Planner'!$G$41+'Step 2 - Order Planner'!$I$41+'Step 2 - Order Planner'!$G$74<=$B20,S18<=3),C20) -> FALSE | F20: =IF(AND(SUM('Step 2 - Order Planner'!G26:G39)>=3000,SUM('Step 2 - Order Planner'!G26:G39)<8000),0.04,0) -> 0 | G20: =SUM(E20:F20) -> 0 | H20: =A20-$H$19 -> 3000 | I20: 0.04
A21: 8000 | B21: =A22-1 -> 19999 | C21: 0.06 | D21: 0.06 | E21: =IF(AND(('Step 2 - Order Planner'!$G$41+'Step 2 - Order Planner'!$I$41+'Step 2 - Order Planner'!$G$74)>=3000,'Step 2 - Order Planner'!$G$41+'Step 2 - Order Planner'!$I$41+'Step 2 - Order Planner'!$G$74>=$A21,'Step 2 - Order Planner'!$G$41+'Step 2 - Order Planner'!$I$41+'Step 2 - Order Planner'!$G$74<=$B21,S18<=3),C21) -> FALSE | G21: =SUM(E21:F21) -> 0 | H21: =A21-$H$19 -> 8000 | I21: 0.06 | L21: Article Number | M21: Qaulifying Non-Agency Products | N21: Package | O21: Quantity Ordered | P21: Conv. to bottle
A22: 20000 | B22: 1000000 | C22: 0.12 | D22: 0.12 | E22: =IF(AND(('Step 2 - Order Planner'!$G$41+'Step 2 - Order Planner'!$I$41+'Step 2 - Order Planner'!$G$74)>=3000,'Step 2 - Order Planner'!$G$41+'Step 2 - Order Planner'!$I$41+'Step 2 - Order Planner'!$G$74>=$A22,'Step 2 - Order Planner'!$G$41+'Step 2 - Order Planner'!$I$41+'Step 2 - Order Planner'!$G$74<=$B22,S18<=3),C22) -> FALSE | G22: =SUM(E22:F22) -> 0 | H22: =A22-$H$19 -> 20000 | I22: 0.12 | L22: 59026671 | M22: Aramax™ Intrinsic® Brand Fungicide | N22: 2 x 2.5 gal | O22: ='Step 2 - Order Planner'!F26+'Step 2 - Order Planner'!H26 -> 0 | P22: =O22*2 -> 0
C23: DISCOUNT | E23: =SUM(E20:E22) -> 0 | F23: =SUM(F20:F22) -> 0 | G23: =SUM(E23:F23) -> 0 | H23: =MIN(IF(H20:H22>0,H20:H22)) -> 3000 | L23: 59014247 | M23: Tower® herbicide | N23: 2 x 2.5 gal | O23: ='Step 2 - Order Planner'!F61 -> 0 | P23: =O23*2 -> 0

Sheet Article Reference (hidden)
A1: 2026 Qualifying Fungicides
A2: Article Number | B2: Qaulifying Non-Agency Products | C2: Package | D2: Price | E2: CA Redemption | F2: Volume | G2: Rebae Sales Total | H2: Case UOM | I2: Price/UOM | J2: Case Price
A3: 59026671 | B3: Aramax™ Intrinsic® brand Fungicide | C3: 2 x 2.5 gal | D3: 5215 | E3: 5359.7 | F3: =VLOOKUP($A3,'Step 2 - Order Planner'!$C$26:$H$40,4,FALSE)+VLOOKUP($A3,'Step 2 - Order Planner'!$C$26:$H$40,6,FALSE) -> 0 | G3: =F3*D3 -> 0 | H3: 5 | I3: =J3/H3 -> 1043 | J3: =D3 -> 5215
A4: 59032979 | B4: Aramax™ Intrinsic brand fungicide | C4: 4 x 43.5 fl oz | D4: 1479 | E4: 1520.76 | F4: =VLOOKUP($A4,'Step 2 - Order Planner'!$C$26:$H$40,4,FALSE)+VLOOKUP($A4,'Step 2 - Order Planner'!$C$26:$H$40,6,FALSE) -> 0 | G4: =F4*D4 -> 0 | H4: =4*43.5 -> 174 | I4: =J4/H4 -> 8.5 | J4: =D4 -> 1479
A5: 59021463 | B5: Emerald® fungicide | C5: 10 x 0.49 lb | D5: 1239.7 | E5: 1274.1 | F5: =VLOOKUP($A5,'Step 2 - Order Planner'!$C$26:$H$40,4,FALSE)+VLOOKUP($A5,'Step 2 - Order Planner'!$C$26:$H$40,6,FALSE) -> 0 | G5: 0 | H5: =10*0.49 -> 4.9 | I5: =J5/H5 -> 253 | J5: =D5 -> 1239.7
A6: 59014003 | B6: Encartis® fungicide | C6: 2 x 2.5 gal | D6: 680 | E6: 698.86 | F6: =VLOOKUP($A6,'Step 2 - Order Planner'!$C$26:$H$40,4,FALSE)+VLOOKUP($A6,'Step 2 - Order Planner'!$C$26:$H$40,6,FALSE) -> 0 | G6: 0 | H6: =2*2.5 -> 5 | I6: =J6/H6 -> 136 | J6: =D6 -> 680
A7: 59012350 | B7: Honor® Intrinsic® brand fungicide | C7: 6 x 3 lb | D7: 3528 | E7: 3625.92 | F7: =VLOOKUP($A7,'Step 2 - Order Planner'!$C$26:$H$40,4,FALSE)+VLOOKUP($A7,'Step 2 - Order Planner'!$C$26:$H$40,6,FALSE) -> 0 | G7: 0 | H7: =6*3 -> 18 | I7: 196 | J7: 3528
A8: 59012885 | B8: Honor® Intrinsic® brand fungicide | C8: 1 x 36 lb | D8: 5112 | E8: 5253.84 | F8: =VLOOKUP($A8,'Step 2 - Order Planner'!$C$26:$H$40,4,FALSE)+VLOOKUP($A8,'Step 2 - Order Planner'!$C$26:$H$40,6,FALSE) -> 0 | G8: 0 | H8: 36 | I8: 142 | J8: 5112
A9: 59028038 | B9: Insignia® SC Intrinsic® brand fungicide | C9: 4 x 30.5 fl oz | D9: 2303.36 | E9: 2366.8 | F9: =VLOOKUP($A9,'Step 2 - Order Planner'!$C$26:$H$40,4,FALSE)+VLOOKUP($A9,'Step 2 - Order Planner'!$C$26:$H$40,6,FALSE) -> 0 | G9: 0 | H9: =4*30.5 -> 122 | I9: 18.88 | J9: 2303.36
A10: 59028040 | B10: Insignia® SC Intrinsic® brand fungicide | C10: 2 x 2.5 gal | D10: 7522.5 | E10: 7731.26 | F10: =VLOOKUP($A10,'Step 2 - Order Planner'!$C$26:$H$40,4,FALSE)+VLOOKUP($A10,'Step 2 - Order Planner'!$C$26:$H$40,6,FALSE) -> 0 | G10: 0 | H10: 5 | I10: 1504.5 | J10: 7522.5
A11: 59027998 | B11: Lexicon® Intrinsic® brand fungicide | C11: 4 x 21 oz | D11: 2520 | E11: 2589.72 | F11: =VLOOKUP($A11,'Step 2 - Order Planner'!$C$26:$H$40,4,FALSE)+VLOOKUP($A11,'Step 2 - Order Planner'!$C$26:$H$40,6,FALSE) -> 0 | G11: 0 | H11: =4*21 -> 84 | I11: 30 | J11: 2520
A12: 59018087 | B12: Maxtima® fungicide | C12: 4 x 26 oz | D12: 956.8 | E12: 983.84 | F12: =VLOOKUP($A12,'Step 2 - Order Planner'!$C$26:$H$40,4,FALSE)+VLOOKUP($A12,'Step 2 - Order Planner'!$C$26:$H$40,6,FALSE) -> 0 | G12: 0 | H12: =4*26 -> 104 | I12: 9.2 | J12: 956.8
A13: 59018071 | B13: Maxtima® fungicide | C13: 2 x 2.5 gal | D13: 4715 | E13: 4845.86 | F13: =VLOOKUP($A13,'Step 2 - Order Planner'!$C$26:$H$40,4,FALSE)+VLOOKUP($A13,'Step 2 - Order Planner'!$C$26:$H$40,6,FALSE) -> 0 | G13: 0 | H13: 5 | I13: 943 | J13: 4715
A14: 59018094 | B14: Navicon® Intrinsic® brand fungicide | C14: 4 x 37 fl oz | D14: 2308.8 | E14: 2372.44 | F14: =VLOOKUP($A14,'Step 2 - Order Planner'!$C$26:$H$40,4,FALSE)+VLOOKUP($A14,'Step 2 - Order Planner'!$C$26:$H$40,6,FALSE) -> 0 | G14: 0 | H14: =4*37 -> 148 | I14: 15.6 | J14: 2308.8
A15: 59018095 | B15: Navicon® Intrinsic® brand fungicide | C15: 2 x 2.5 gal | D15: 7320 | E15: 7523.16 | F15: =VLOOKUP($A15,'Step 2 - Order Planner'!$C$26:$H$40,4,FALSE)+VLOOKUP($A15,'Step 2 - Order Planner'!$C$26:$H$40,6,FALSE) -> 0 | G15: 0 | H15: 5 | I15: 1464 | J15: 7320
A16: 59013833 | B16: Xzemplar® fungicide | C16: 2 x 114 oz | D16: 3602.4 | E16: 3702.72 | F16: =VLOOKUP($A16,'Step 2 - Order Planner'!$C$26:$H$40,4,FALSE)+VLOOKUP($A16,'Step 2 - Order Planner'!$C$26:$H$40,6,FALSE) -> 0 | G16: 0 | H16: =2*114 -> 228 | I16: 15.8 | J16: 3602.4
A17: 59014120 | B17: Xzemplar® fungicide | C17: 4 x 11.4 oz | D17: 861.84 | E17: 885.56 | F17: =VLOOKUP($A17,'Step 2 - Order Planner'!$C$26:$H$40,4,FALSE)+VLOOKUP($A17,'Step 2 - Order Planner'!$C$26:$H$40,6,FALSE) -> 0 | G17: 0 | H17: =4*11.4 -> 45.6 | I17: 18.9 | J17: 861.84
D18: =SUM(D3:D17) -> 49364.4 | E18: =SUM(E3:E17) -> 50734.54 | G18: =SUM(G3:G17) -> 0
A19: 2026 Rest of Portfolio
A20: Article Number | B20: Qaulifying Non-Agency Products | C20: Package | D20: Price | E20: CA Redemption
A21: 59014151 | B21: Admiral® lake colorant | C21: 4 x 1 gal | D21: 280 | E21: 280 | F21: =VLOOKUP(A21,'Step 2 - Order Planner'!$C$44:$F$73,4,FALSE) -> 0 | G21: =F21*D21 -> 0 | H21: 4 | I21: =J21/H21 -> 70 | J21: =D21 -> 280
A22: 59024020 | B22: Alucion® 35 WG insecticide | C22: 10 x 2.375 lbs | D22: 2636.3 | E22: NO CA | F22: 0 | G22: =F22*D22 -> 0 | H22: =10*38 -> 380 | I22: 6.937631579 | J22: 2636.3
A23: 59021451 | B23: Amdro Pro Fire Ant Bait | C23: 1 x 25lbs | D23: 625 | E23: 625 | F23: =VLOOKUP(A23,'Step 2 - Order Planner'!$C$44:$F$73,4,FALSE) -> 0 | G23: 0 | H23: 25 | I23: 25 | J23: 625
A24: 59011636 | B24: Basagran® herbicide | C24: 2 x 1 gal | D24: 127.5 | E24: NO CA | F24: 0 | G24: 0 | H24: 2 | I24: 63.75 | J24: 127.5
A25: 59013424 | B25: Black Onyx lake & pond colorant | C25: 4 x 1 gal | D25: 480 | E25: 480 | F25: =VLOOKUP(A25,'Step 2 - Order Planner'!$C$44:$F$73,4,FALSE) -> 0 | G25: 0 | H25: 4 | I25: 120 | J25: 480
A26: 59011404 | B26: Drive® XLR8 herbicide | C26: 4 x 0.5 gal | D26: 228.13 | E26: 228.13 | F26: =VLOOKUP(A26,'Step 2 - Order Planner'!$C$44:$F$73,4,FALSE) -> 0 | G26: 0 | H26: =4*0.5 -> 2 | I26: 114.065 | J26: 228.13
A27: 59018043 | B27: Drive® XLR8 herbicide | C27: 2 x 2.5 gal | D27: 529.69 | E27: 529.69 | F27: =VLOOKUP(A27,'Step 2 - Order Planner'!$C$44:$F$73,4,FALSE) -> 0 | G27: 0 | J27: 529.69
A28: 59024131 | B28: Finale® XL T&O herbicide | C28: 2 x 2.5 gal | G28: 0 | H28: 5 | I28: =J28/H28 -> 0 | J28: 0 | L28: <-- | M28: Discontinued ???
A29: 59013674 | B29: FreeHand® 1.75G CA herbicide | C29: 1 x 50 lb | D29: 116 | E29: 119 | F29: =VLOOKUP(A29,'Step 2 - Order Planner'!$C$44:$F$73,4,FALSE) -> 0 | G29: 0 | H29: 50 | I29: 2.32 | J29: 116 | L29: 59013674 | M29: FreeHand® 1.75G CA herbicide | N29: 1 x 50 lb
A30: 59013430 | B30: Green Lawnger® colorant | C30: 2 x 2.5 gal | D30: 418.75 | E30: 418.75 | F30: =VLOOKUP(A30,'Step 2 - Order Planner'!$C$44:$F$73,4,FALSE) -> 0 | G30: 0 | H30: 5 | I30: 83.75 | J30: 418.75
A31: 59013410 | B31: Green Lawnger® Transition HC colorant | C31: 4 x 1 gal | D31: 875 | E31: 875 | F31: =VLOOKUP(A31,'Step 2 - Order Planner'!$C$44:$F$73,4,FALSE) -> 0 | G31: 0 | H31: 4 | I31: 218.75 | J31: 875
A32: 59023772 | B32: Green Lawnger® Transition HC colorant | C32: 1 x 30 gal | D32: 2652 | E32: 2652 | F32: =VLOOKUP(A32,'Step 2 - Order Planner'!$C$44:$F$73,4,FALSE) -> 0 | G32: 0 | H32: 1 | I32: 2652 | J32: 2652
A33: 59013342 | B33: Green Lawnger® Vision Pro colorant | C33: 4 x 1 gal | D33: 790 | E33: 790 | F33: =VLOOKUP(A33,'Step 2 - Order Planner'!$C$44:$F$73,4,FALSE) -> 0 | G33: 0 | H33: 4 | I33: 197.5 | J33: 790
A34: 59020732 | B34: Insignia® SC Intrinsic® brand fungicide | C34: 4 x 122 oz | E34: =D34 -> 0 | G34: 0 | H34: =4*122 -> 488 | I34: 0 | J34: 0 | L34: <-- | M34: Discontinued
A35: 59014379 | B35: Orkestra® Intrinsic® brand Fungicide | C35: 4 x 16 oz | D35: 684.8 | E35: NO CA | F35: 0 | G35: 0 | H35: =4*16 -> 64 | I35: 10.7 | J35: 684.8
A36: 59012349 | B36: Pageant® Intrinsic® brand Fungicide | C36: 4 x 1 lb | D36: 460 | E36: 472.76 | F36: =VLOOKUP(A36,'Step 2 - Order Planner'!$C$44:$F$73,4,FALSE) -> 0 | G36: 0 | H36: 4 | I36: 115 | J36: 460
A37: 59017972 | B37: Pendulum® 2G herbicide | C37: 20 lbs bag | D37: 52.5 | E37: 52.5 | F37: =VLOOKUP(A37,'Step 2 - Order Planner'!$C$44:$F$73,4,FALSE) -> 0 | G37: 0 | H37: 20 | I37: 2.625 | J37: 52.5
A38: 59015072 | B38: Pendulum® 2G herbicide | C38: 40 lbs bag | D38: 92 | E38: 92 | F38: =VLOOKUP(A38,'Step 2 - Order Planner'!$C$44:$F$73,4,FALSE) -> 0 | G38: 0 | H38: 40 | I38: 2.3 | J38: 92
A39: 59049276 | B39: Pendulum® AquaCap herbicide | C39: 2 x 2.5 gal | D39: 290.63 | E39: 290.63 | F39: =VLOOKUP(A39,'Step 2 - Order Planner'!$C$44:$F$73,4,FALSE) -> 0 | G39: 0 | H39: 5 | I39: 58.126 | J39: 290.63
A40: 59011279 | B40: Pendulum® AquaCap herbicide | C40: 1 x 15 gal | D40: 1035 | E40: 1063.65 | F40: =VLOOKUP(A40,'Step 2 - Order Planner'!$C$44:$F$73,4,FALSE) -> 0 | G40: 0 | H40: 15 | I40: 69 | J40: 1035
A41: 59017959 | B41: Pillar® G Intrinsic® brand fungicide | C41: 15 lbs bag | D41: 60.75 | E41: 60.75 | F41: =VLOOKUP(A41,'Step 2 - Order Planner'!$C$44:$F$73,4,FALSE) -> 0 | G41: 0 | H41: 15 | I41: 4.05 | J41: 60.75
A42: 59012784 | B42: Pillar® G Intrinsic® brand fungicide | C42: 30 lbs bag | D42: 112.5 | E42: 112.5 | F42: =VLOOKUP(A42,'Step 2 - Order Planner'!$C$44:$F$73,4,FALSE) -> 0 | G42: 0 | H42: 30 | I42: 3.75 | J42: 112.5
A43: 59026395 | B43: Pillar® SC Intrinsic brand fungicide | C43: 4 x 43.5 oz | D43: 0 | E43: =D43 -> 0 | F43: 0 | G43: 0 | H43: =4*43.5 -> 174 | I43: 0 | J43: 0 | L43: <-- | M43: lawn care only
A44: 59018005 | B44: Pylex® herbicide | C44: 4 x 4 oz | D44: 1552 | E44: 1595.04 | F44: =VLOOKUP(A44,'Step 2 - Order Planner'!$C$44:$F$73,4,FALSE) -> 0 | G44: 0 | H44: 16 | I44: 97 | J44: 1552
A45: 59014427 | B45: Segment® II herbicide | C45: 2 x 2.5 gal | D45: 1706.25 | E45: NO CA | F45: 0 | G45: 0 | H45: 5 | I45: 341.25 | J45: 1706.25
A46: 59011057 | B46: Siesta® Fire Ant Bait | C46: 15 lbs | D46: 318.75 | E46: 318.75 | F46: =VLOOKUP(A46,'Step 2 - Order Planner'!$C$44:$F$73,4,FALSE) -> 0 | G46: 0 | H46: 15 | I46: 21.25 | J46: 318.75
A47: 59023753 | B47: Sultan® miticide | C47: 4 x 0.125 gal | D47: 740 | E47: 760.52 | F47: =VLOOKUP(A47,'Step 2 - Order Planner'!$C$44:$F$73,4,FALSE) -> 0 | G47: 0 | H47: =4*0.125 -> 0.5 | I47: 1480 | J47: 740
A48: 59014247 | B48: Tower® herbicide | C48: 2 x 2.5 gal | D48: 2100 | E48: 2158.3 | F48: =VLOOKUP(A48,'Step 2 - Order Planner'!$C$44:$F$73,4,FALSE) -> 0 | G48: 0 | H48: 5 | I48: 420 | J48: 2100
A49: 59013723 | B49: Turf Mark spray indicator - blue | C49: 12 x 0.25 gal | D49: 273.75 | E49: 273.75 | F49: =VLOOKUP(A49,'Step 2 - Order Planner'!$C$44:$F$73,4,FALSE) -> 0 | G49: 0 | H49: =12*0.25 -> 3 | I49: 91.25 | J49: 273.75 | L49: x
A50: 59013314 | B50: Turf Mark spray indicator - blue | C50: 1 x 30 gal | D50: 1717.5 | E50: 1717.5 | F50: =VLOOKUP(A50,'Step 2 - Order Planner'!$C$44:$F$73,4,FALSE) -> 0 | G50: 0 | H50: 30 | I50: 57.25 | J50: 1717.5 | L50: x
A51: 59030213 | B51: Turf Mark spray indicator - blue | C51: 2 x 2.5 gal | D51: 305.63 | E51: 305.63 | F51: =VLOOKUP(A51,'Step 2 - Order Planner'!$C$44:$F$73,4,FALSE) -> 0 | G51: 0 | H51: 5 | I51: 61.126 | J51: 305.63
A52: 59013420 | B52: Turf Mark spray indicator - blue | C52: 4 x 1 gal | D52: 262.5 | E52: 262.5 | F52: =VLOOKUP(A52,'Step 2 - Order Planner'!$C$44:$F$73,4,FALSE) -> 0 | G52: 0 | H52: 4 | I52: 65.625 | J52: 262.5 | L52: <-- | M52: Discontinued
A53: 59014680 | B53: Ventigra® insecticide | C53: 4 x 20 oz | D53: 1360 | E53: 1397.6 | F53: =VLOOKUP(A53,'Step 2 - Order Planner'!$C$44:$F$73,4,FALSE) -> 0 | G53: 0 | H53: =4*20 -> 80 | I53: 17 | J53: 1360
D54: =SUM(D21:D53) -> 22882.93 | E54: =SUM(E21:E53) -> 17931.95 | G54: =SUM(G21:G53) -> 0

Sheet Coverage Reference (hidden)
A1: Calculator Acreage
A2: Acre Coverage | E2: 4 | F2: 5 | G2: 6 | H2: 7
A3: Product Name | B3: Article # | C3: Package Size | D3: Price/Case | E3: Low Rate | F3: Mid Rate | G3: Mid2 Rate | H3: High rate | K3: Low Rate | L3: Mid Rate | M3: High rate
A4: Aramax™ Intrinsic® Brand Fungicide | B4: 59026671 | C4: 2 x 2.5 gal | H4: =640/43.5 -> 14.71264368 | M4: =640/43.5 -> 14.71264368
A5: Aramax™ Intrinsic® Brand Fungicide | B5: 59032979 | C5: 4 x 43.5 fl oz | H5: =174/43.5 -> 4 | M5: =174/43.5 -> 4
A6: Emerald® Fungicide | B6: 59021463 | C6: 10 x .49 lb. | H6: 10 | K6: 13.9 | L6: 12 | M6: 10 | Q6: 5 | R6: gal
A7: Emerald® Fungicide | B7: 59012825 | C7: 50 x .49 lb. | H7: 50 | K7: 69.3 | L7: 60 | M7: 50 | Q7: 640 | R7: foz
A8: Encartis® fungicide | B8: 59014003 | C8: 2 x 2.5 gal | F8: 4.9 | G8: 4.2 | H8: 3.7 | K8: 99 | L8: 99 | M8: 99
A9: Honor® Intrinsic™ brand Fungicide | B9: 59012885 | C9: 1 x 36 lb | H9: 12 | K9: 24 | L9: 18 | M9: 12 | Q9: =4*43.5 -> 174
A10: Honor® Intrinsic™ brand Fungicide | B10: 59012350 | C10: 6 x 3 lb | H10: 6 | K10: 12 | L10: 9 | M10: 6
A11: Insignia® SC Intrinsic™ brand Fungicide | B11: 59028040 | C11: 2 x 2.5 gal | H11: 21 | K11: 36.8 | L11: 28.9 | M11: 21 | Q11: =Q7/Q9 -> 3.67816092
A12: Insignia® SC Intrinsic™ brand Fungicide | B12: 59028038 | C12: 4 x 30.5 oz | H12: 4 | K12: 7 | L12: 5.5 | M12: 4
A13: Lexicon® Intrinsic™ Brand Fungicide | B13: 59027998 | C13: 4 x 21 oz | H13: 4 | K13: 5.68 | L13: 4.84 | M13: 4
A14: Maxtima® Fungicide | B14: 59018087 | C14: 4 x26 oz | E14: 12 | F14: 6 | G14: 4 | H14: 3 | K14: 12 | L14: 6 | M14: 3
A15: Maxtima Fungicide | B15: 59018071 | C15: 2 x 2.5 gal | E15: 73.5 | F15: 36 | G15: 24.6 | H15: 18 | K15: 73.5 | L15: 36 | M15: 18
A16: Navicon® Intrinsic™ brand Fungicide | B16: 59018094 | C16: 4 x 37 fl oz | H16: 4 | L16: 5 | M16: 4
A17: Navicon Intrinsic™ brand Fungicide | B17: 59018095 | C17: 2 x 2.5 gal | H17: 17 | L17: 21 | M17: 17
A18: Pillar G Intrinsic™ | B18: 59017959 | C18: 15 lbs | K18: 0.11 | L18: 0.11 | M18: 0.11
A19: Pillar G Intrinsic™ | B19: 59012784 | C19: 30 lbs | K19: 0.22 | L19: 0.22 | M19: 0.22
A20: Xzemplar™ Fungicide | B20: 59013833 | C20: 2 x 114 oz | F20: 32.8 | G20: 25 | H20: 20 | K20: 32.8 | L20: 24.95 | M20: 20
A21: Xzemplar™Fungicide | B21: 59014120 | C21: 4 x 11.4 oz | F21: 6.6 | G21: 5 | H21: 4 | K21: 6.6 | L21: 5 | M21: 4
A24: Brand | B24: Rate | C24: Rate Level Above | E24: 43.5
A25: Aramax | B25: 43.5 oz
A26: Emerald | B26: ="8.0"&" "&F26 -> 8.0 oz | C26: All | D26: 0.18 | E26: =D26*$E$24 -> 7.83 | F26: oz | M26: =5*128 -> 640 | N26: =M26/43.6 -> 14.67889908
A27: Encartis | B27: Select Rate
A28: Encartis | B28: 130.5 fl oz | C28: 5
A29: Encartis | B29: 152.5 fl oz | C29: 6 | M29: =5*128 -> 640
A30: Encartis | B30: 174.0 fl oz | C30: 7 | M30: =M29/43.6 -> 14.67889908
A31: Honor | B31: ="48.0"&" "&F31 -> 48.0 oz | C31: All | D31: 1.1 | E31: =D31*$E$24 -> 47.85 | F31: oz
A32: Insignia | B32: =30.5&" "&F32 -> 30.5 oz | C32: All | D32: 0.7 | E32: =D32*$E$24 -> 30.45 | F32: oz
A33: Lexicon | B33: ="21.0"&" "&F33 -> 21.0 oz | C33: All | D33: 0.47 | E33: =D33*$E$24 -> 20.445 | F33: oz | M33: =0.07*M26 -> 44.8
A34: Navicon | B34: =37.5&" "&F34 -> 37.5 oz | C34: All | D34: 0.85 | E34: =D34*$E$24 -> 36.975 | F34: oz
A35: Maxtima | B35: Select Rate | M35: =0.07*M26 -> 44.8
A36: Maxtima | B36: =E36&" "&F36 -> 8.7 oz | C36: 4 | D36: 0.2 | E36: =D36*$E$24 -> 8.7 | F36: oz
A37: Maxtima | B37: 17.4 oz | C37: 5 | D37: 0.4 | E37: =D37*$E$24 -> 17.4 | F37: oz
A38: Maxtima | B38: 26.1 oz | C38: 6 | D38: 0.6 | E38: =D38*$E$24 -> 26.1 | F38: oz | M38: =640/43.6 -> 14.67889908
A39: Maxtima | B39: 34.8 oz | C39: 7 | D39: 0.8 | E39: =D39*$E$24 -> 34.8 | F39: oz
A40: Xzemplar | B40: Select Rate
A41: Xzemplar | B41: =E41&" "&F41 -> 7 oz | C41: 5 | E41: 7 | F41: oz
A42: Xzemplar | B42: =E42&" "&F42 -> 9.2 oz | C42: 6 | D42: 0.21 | E42: 9.2 | F42: oz
A43: Xzemplar | B43: =E43&" "&F43 -> 11.4 oz | C43: 7 | D43: 0.26 | E43: 11.4 | F43: oz

Sheet Sheet1 (hidden)
B2: Design Your Own Program (DYOP) | G2: Across the Course Solutions (ACS)
B3: Qualifying Fungicide Purchase Level (DYOP) | C3: Earned Incentive % | E3: DYOP Brand Requirements | G3: Qualifying EOP Purchase Level (Excluding DYOP Fungicides) | H3: Earned Incentive %
C4: Oct. 1-31, 2025 | D4: Nov. 1-Dec. 5, 2025 | H4: Oct.1-Dec. 1, 2025
B5: $3,000-$7,999 (Par) | C5: 0.08 | D5: 0.03 | E5: One (1) Qualifying Brand | G5: $3,000-$7,999 | H5: 0.04
B6: $8,000-$19,999 (Birdie) | C6: 0.14 | D6: 0.06 | E6: Three (3) Qualifying Brands | G6: $8,000-$19,999 | H6: 0.06
B7: $20,000-$29,999 (Eagle) | C7: 17% (+12% on ACS brands) | D7: 9% (+12% on ACS brands) | E7: Three (3) Qualifying Brands | G7: $20,000+ | H7: 0.12
B8: $30,000-$39,999 (Albatross) | C8: 20% (+12% on ACS brands) | D8: 10% (+12% on ACS brands) | E8: Three (3) Qualifying Brands | G8: (Eagle, Albatross, Ace DYOP customers automatically qualify for this tier)
B9: $40,000+ (Ace) | C9: 24% (+12% on ACS brands) | D9: 12% (+12% on ACS Brands) | E9: Three (3) Qualifying Brands
